Workbook

Sheet Berechnungsblatt
A2: Datenblatt zur Berechnung der Bauzonengrösse nach Vorgaben der kantonalen Siedlungsstrategie 2014 / 2021
T3: BFS-Nummer | U3: =VLOOKUP($B$4,Gemeindeliste!A1:F107,2,FALSE) -> 2421
A4: Gemeinde: | B4: Aedermannsdorf | E4: Handlungsraum: | I4: Hinweis für die Gemeinde:
A6: Bezirk: | B6: =VLOOKUP($B$4,Gemeindeliste!$A$1:$F$107,3,FALSE) -> Thal | E6: =V6 -> ländlich | I6: =IF(ISBLANK(VLOOKUP($B$4,Gemeindeliste!$A$1:$F$107,6,FALSE)),"",VLOOKUP($B$4,Gemeindeliste!$A$1:$F$107,6,FALSE)) ->  | T6: HR Raum | U6: =VLOOKUP($B$4,Gemeindeliste!$A$1:$F$107,4,FALSE) -> L | V6: =IF($U$6="A","agglogeprägt",IF($U$6="U","urban",IF($U$6="L","ländlich","-"))) -> ländlich
T7: Zusatz | U7: =VLOOKUP($B$4,Gemeindeliste!$A$1:$F$107,5,FALSE) -> -
E8: =VLOOKUP($B$4,Gemeindeliste!$A$1:$F$107,5,FALSE) -> -
A10: Wohn-, Misch- und Zentrumszonen | I10: Bewertung Wohn-, Misch- und Zentrumszonen nach Vorgaben der Siedlungsstrategie
B12: Abkürzung | C12: Einheit | D12: durch Gemeinde / Büro gewählte bzw. berechnete Werte | F12: in der Siedlungsstrategie verwendete Werte | I12: WMZ unbebaut/bebaut (BWMZ) | J12: Resultat Berechnung durch Gemeinde / Büro | M12: Resultat der Siedlungsstrategie (Kanton)
F13: 2021 | G13: 2014 | I13: 2021 | J13: =D15/D16*100 -> 19.41176471 | K13: % | M13: =IF(ISBLANK(VLOOKUP(Berechnungsblatt!$U$3,Grundlagedaten_2023!$A$4:$W$110,7,FALSE)),"",VLOOKUP(Berechnungsblatt!$U$3,Grundlagedaten_2023!$A$4:$W$110,7,FALSE)*100) -> 19.16519694 | N13: % | S13: unb/beb | T13: =IF(M13<10,"< 10%",IF(AND(M13>=10,M13<20),"10% - 20%",IF(M13>=20,"> 20%"))) -> 10% - 20%
A14: Bauzonenstatistik | I14: 2014 | M14: =IF(ISBLANK(VLOOKUP(Berechnungsblatt!$U$3,Grundlagedaten_2014!$A$4:$Y$110,7,FALSE)),"",VLOOKUP(Berechnungsblatt!$U$3,Grundlagedaten_2014!$A$4:$Y$110,7,FALSE)*100) -> 32.52139566 | N14: % | S14: Dichte | T14: =IF(M23>5,"> 5%",IF(AND(M23<=5,M23>-5),"-5% - 5%",IF(M23<-5,"< -5%"))) -> < -5%
A15: unbebaute WMZ | B15: WMZunb | C15: [ha] | D15: 3.3 | F15: =VLOOKUP($U$3,Grundlagedaten_2023!$A$2:$W$110,5,FALSE) -> 3.26 | G15: =VLOOKUP($U$3,Grundlagedaten_2014!$A$2:$Z$110,5,FALSE) -> 4.94 | S15: Bauzonen | T15: =IF(M32>105,"> 105%",IF(AND(M32<=105,M32>95),"95% - 105%",IF(M32<95,"< 95%"))) -> < 95%
A16: bebaute WMZ | B16: WMZbeb | C16: [ha] | D16: 17 | F16: =VLOOKUP($U$3,Grundlagedaten_2023!$A$2:$W$110,6,FALSE) -> 17.01 | G16: =VLOOKUP($U$3,Grundlagedaten_2014!$A$2:$Z$110,6,FALSE) -> 15.19
A18: Angaben zur Bevölkerung und Beschäftigten in der WMZ
A19: aktuelle Bevölkerungszahl in der WMZ | B19: Bev (WMZ) | C19: [EW] | D19: 457 | F19: =VLOOKUP($U$3,Grundlagedaten_2023!$A$2:$W$110,8,FALSE) -> 457 | G19: =VLOOKUP($U$3,Grundlagedaten_2014!$A$2:$Z$110,8,FALSE) -> 398
A20: Beschäftigte in WMZ | B20: BSWMZ | C20: [BS] | D20: 57 | F20: =VLOOKUP($U$3,Grundlagedaten_2023!$A$2:$W$110,9,FALSE) -> 57 | G20: =VLOOKUP($U$3,Grundlagedaten_2014!$A$2:$Z$110,9,FALSE) -> 99 | I20: Abweichung Dichte WMZ (AWMZ) | J20: Resultat Berechnung durch Gemeinde / Büro | M20: Resultat der Siedlungsstrategie (Kanton)
A21: EW und BS in WMZ | B21: EBWMZ | C21: [EW+BS] | D21: =SUM(D19:E20) -> 514 | F21: =VLOOKUP($U$3,Grundlagedaten_2023!$A$2:$W$110,10,FALSE) -> 514 | G21: =VLOOKUP($U$3,Grundlagedaten_2014!$A$2:$Z$110,10,FALSE) -> 497
A22: Bevölkerungsprognose für die WMZ | B22: Bev (2032) | C22: [EW] | D22: 457 | F22: =VLOOKUP($U$3,Grundlagedaten_2023!$A$2:$W$110,18,FALSE) -> 457 | G22: =VLOOKUP($U$3,Grundlagedaten_2014!$A$2:$Z$110,18,FALSE) -> 468.7352368
I23: 2021 | J23: =(1-(D25/D26))*100 -> -29.57173689 | K23: % | M23: =IF(ISBLANK(VLOOKUP(Berechnungsblatt!$U$3,Grundlagedaten_2023!$A$4:$W$110,12,FALSE)),"",VLOOKUP(Berechnungsblatt!$U$3,Grundlagedaten_2023!$A$4:$W$110,12,FALSE)*100) -> -29.62548067 | N23: %
A24: Dichteberechnung für Einwohner und Beschäftigte | I24: 2014 | M24: =IF(ISBLANK(VLOOKUP(Berechnungsblatt!$U$3,Grundlagedaten_2014!$A$4:$Y$110,12,FALSE)),"",VLOOKUP(Berechnungsblatt!$U$3,Grundlagedaten_2014!$A$4:$Y$110,12,FALSE)*100) -> -19.73630811 | N24: %
A25: Dichtewert WMZ Gemeinde | B25: DWMZ | C25: [m2/EW+BS] | D25: =(D16*10000)/D21 -> 330.7392996 | F25: =VLOOKUP($U$3,Grundlagedaten_2023!$A$2:$W$110,11,FALSE) -> 255.3 | G25: =VLOOKUP($U$3,Grundlagedaten_2014!$A$2:$Z$110,11,FALSE) -> 305.6338028
A26: Dichtewert Median WMZ (pro Handlungsraum; EW und BS) | B26: DMW | C26: [m2/EW+BS] | D26: =G26 -> 255.2557429 | F26: =VLOOKUP($V$6,Medianwerte!A11:B14,2,FALSE) -> 255.2557429 | G26: =VLOOKUP($V$6,Medianwerte!A11:B14,2,FALSE) -> 255.2557429
A28: Dichteberechnung nur für Einwohner
A29: Dichtewert Median WMZ nur EW (pro Handlungsraum) | B29: DMEW | C29: [m2/EW] | D29: =G29 -> 305.9842247 | F29: =VLOOKUP($V$6,Medianwerte!A3:B6,2,FALSE) -> 305.9842247 | G29: =VLOOKUP($V$6,Medianwerte!A3:B6,2,FALSE) -> 305.9842247
A30: Dichtewert WMZ nur EW | B30: DEW | C30: [m2/EW] | D30: =(D16*10000)/D19 -> 371.9912473 | F30: =VLOOKUP($U$3,Grundlagedaten_2023!$A$2:$W$110,13,FALSE) -> 355.4603854 | G30: =VLOOKUP($U$3,Grundlagedaten_2014!$A$2:$Z$110,13,FALSE) -> 381.6582915 | I30: WMZ Bauzonenbedarf (BzB (2031)) | J30: Resultat Berechnung durch Gemeinde / Büro | M30: Resultat der Siedlungsstrategie (Kanton)
A31: relevanter Dichtewert (entspricht dem kleineren Wert von DWMZ oder DMW) | B31: Drel | C31: [m2/EW] | D31: =IFERROR(IF(D29<D30,D29,D30),"") -> 305.9842247 | F31: =IFERROR(IF(F29<F30,F29,F30),"") -> 305.9842247 | G31: =IFERROR(IF(G29<G30,G29,G30),"") -> 305.9842247
I32: 2021 | J32: =D22/D37*100 -> 76.45847087 | K32: % | M32: =IF(ISBLANK(VLOOKUP(Berechnungsblatt!$U$3,Grundlagedaten_2023!$A$4:$W$110,19,FALSE)),"",VLOOKUP(Berechnungsblatt!$U$3,Grundlagedaten_2023!$A$4:$W$110,19,FALSE)*100) -> 76.7362871 | N32: %
A33: Berechnung Einwohnerpotenzial in der WMZ (für die nächsten 15 Jahre) | I33: 2014 | M33: =IF(ISBLANK(VLOOKUP(Berechnungsblatt!$U$3,Grundlagedaten_2014!$A$4:$Y$110,19,FALSE)),"",VLOOKUP(Berechnungsblatt!$U$3,Grundlagedaten_2014!$A$4:$Y$110,19,FALSE)*100) -> 79.14395747 | N33: %
A34: Einwohnerpotenzial in der unbebauten WMZ | B34: Punb | C34: [EW] | D34: =(D15*10000)/D31 -> 107.8486972 | F34: =VLOOKUP($U$3,Grundlagedaten_2023!$A$2:$W$110,14,FALSE) -> 106.1889251 | G34: =VLOOKUP($U$3,Grundlagedaten_2014!$A$2:$Z$110,14,FALSE) -> 161.4462316
A35: Einwohnerpotenzial in der bebauten WMZ | B35: Pb | C35: [EW] | D35: =IF(D30=D31,0,((D16*10000)/D29)-((D16*10000)/D30)) -> 98.58419776 | F35: =VLOOKUP($U$3,Grundlagedaten_2023!$A$2:$W$110,15,FALSE) -> 97.07166124 | G35: =VLOOKUP($U$3,Grundlagedaten_2014!$A$2:$Z$110,15,FALSE) -> 98.43082141
A36: angerechnetes Einwohnerpotenzial in der bebauten WMZ | B36: Pbeb | C36: [EW] | D36: =D35/3 -> 32.86139925 | F36: =VLOOKUP($U$3,Grundlagedaten_2023!$A$2:$W$110,16,FALSE) -> 73.71661238 | G36: =VLOOKUP($U$3,Grundlagedaten_2014!$A$2:$Z$110,16,FALSE) -> 32.8102738
A37: theoretisches Einwohnerpotenzial in WMZ | B37: Ptheo | C37: [EW] | D37: =D19+D34+D36 -> 597.7100965 | F37: =VLOOKUP($U$3,Grundlagedaten_2023!$A$2:$W$110,17,FALSE) -> 595.5461455 | G37: =VLOOKUP($U$3,Grundlagedaten_2014!$A$2:$Z$110,17,FALSE) -> 592.2565054
A40: Arbeitszonen | I40: Bewertung Arbeitszonen nach Vorgaben der Siedlungsstrategie
B42: Abkürzung | C42: Einheit | D42: frei wählbarar Wert | F42: in Siedlungsstrategie verwendeter Wert | I42: AZ unbebaut/bebaut (FAZ) | J42: Resultat Berechnung durch Gemeinde / Büro | M42: Resultat der Siedlungsstrategie (Kanton)
F43: 2020 | G43: 2014 | I43: 2021 | J43: =IFERROR((D45/D46)*100,"") -> 0 | K43: % | M43: =IF(ISBLANK(VLOOKUP(Berechnungsblatt!$U$3,Grundlagedaten_2023!$A$4:$W$110,23,FALSE)),"",VLOOKUP(Berechnungsblatt!$U$3,Grundlagedaten_2023!$A$4:$W$110,23,FALSE)*100) -> 0 | N43: %
A44: Bauzonenstatistik | I44: 2014 | M44: =IF(ISBLANK(VLOOKUP(Berechnungsblatt!$U$3,Grundlagedaten_2014!$A$4:$Y$110,23,FALSE)),"",VLOOKUP(Berechnungsblatt!$U$3,Grundlagedaten_2014!$A$4:$Y$110,23,FALSE)*100) -> 0 | N44: %
A45: unbebaute Fläche AZ | B45: AZunb | C45: [ha] | D45: 0 | F45: =VLOOKUP($U$3,Grundlagedaten_2023!$A$3:$W$110,21,FALSE) -> 0 | G45: =VLOOKUP($U$3,Grundlagedaten_2014!$A$3:$Z$110,21,FALSE) -> 0
A46: bebaute Fläche AZ | B46: AZbeb | C46: [ha] | D46: 3.6 | F46: =VLOOKUP($U$3,Grundlagedaten_2023!$A$3:$W$110,22,FALSE) -> 3.59 | G46: =VLOOKUP($U$3,Grundlagedaten_2014!$A$3:$Z$110,22,FALSE) -> 3.57
I50: AZ Dichte (AAZ) | J50: Resultat Berechnung durch Gemeinde / Büro | M50: Resultat der Siedlungsstrategie (Kanton)
I53: 2020 | J53: keine Berechnung | M53: keine Berechnung
I54: 2014 | M54: =IF(ISBLANK(VLOOKUP(Berechnungsblatt!$U$3,Grundlagedaten_2014!$A$4:$Y$110,25,FALSE)),"",VLOOKUP(Berechnungsblatt!$U$3,Grundlagedaten_2014!$A$4:$Y$110,25,FALSE)*100) -> -122.6075322 | N54: %

Sheet Gemeindeliste (hidden)
A1: Aedermannsdorf | B1: 2421 | C1: Thal | D1: L | E1: -
A2: Aeschi | B2: 2511 | C2: Wasseramt | D2: L | E2: - | F2: Keine Arbeitszone
A3: Balm bei Günsberg | B3: 2541 | C3: Lebern | D3: L | E3: - | F3: Keine Arbeitszone
A4: Balsthal | B4: 2422 | C4: Thal | D4: U | E4: Regionalzentrum
A5: Bärschwil | B5: 2611 | C5: Thierstein | D5: L | E5: -
A6: Bättwil | B6: 2471 | C6: Dorneck | D6: A | E6: -
A7: Beinwil | B7: 2612 | C7: Thierstein | D7: L | E7: -
A8: Bellach | B8: 2542 | C8: Lebern | D8: U | E8: -
A9: Bettlach | B9: 2543 | C9: Lebern | D9: U | E9: -
A10: Biberist | B10: 2513 | C10: Wasseramt | D10: U | E10: -
A11: Biezwil | B11: 2445 | C11: Bucheggberg | D11: L | E11: -
A12: Bolken | B12: 2514 | C12: Wasseramt | D12: L | E12: - | F12: Keine Arbeitszone
A13: Boningen | B13: 2571 | C13: Olten | D13: A | E13: -
A14: Breitenbach | B14: 2613 | C14: Thierstein | D14: U | E14: Regionalzentrum
A15: Buchegg | B15: 2465 | C15: Bucheggberg | D15: L | E15: -
A16: Büren | B16: 2472 | C16: Dorneck | D16: L | E16: - | F16: Keine Arbeitszone
A17: Büsserach | B17: 2614 | C17: Thierstein | D17: U | E17: -
A18: Däniken | B18: 2572 | C18: Olten | D18: U | E18: -
A19: Deitingen | B19: 2516 | C19: Wasseramt | D19: A | E19: -
A20: Derendingen | B20: 2517 | C20: Wasseramt | D20: U | E20: -
A21: Dornach | B21: 2473 | C21: Dorneck | D21: U | E21: Regionalzentrum
A22: Drei Höfe | B22: 2535 | C22: Wasseramt | D22: L | E22: -
A23: Dulliken | B23: 2573 | C23: Olten | D23: U | E23: -
A24: Egerkingen | B24: 2401 | C24: Gäu | D24: U | E24: -
A25: Eppenberg-Wöschnau | B25: 2574 | C25: Olten | D25: A | E25: -
A26: Erlinsbach SO | B26: 2503 | C26: Gösgen | D26: A | E26: -
A27: Erschwil | B27: 2615 | C27: Thierstein | D27: L | E27: -
A28: Etziken | B28: 2518 | C28: Wasseramt | D28: L | E28: -
A29: Fehren | B29: 2616 | C29: Thierstein | D29: L | E29: - | F29: Keine Arbeitszone
A30: Feldbrunnen-St. Niklaus | B30: 2544 | C30: Lebern | D30: A | E30: -
A31: Flumenthal | B31: 2545 | C31: Lebern | D31: L | E31: -
A32: Fulenbach | B32: 2575 | C32: Olten | D32: L | E32: Stützpunktgemeinde
A33: Gempen | B33: 2474 | C33: Dorneck | D33: L | E33: - | F33: Keine Arbeitszone
A34: Gerlafingen | B34: 2519 | C34: Wasseramt | D34: U | E34: -
A35: Grenchen | B35: 2546 | C35: Lebern | D35: U | E35: Hauptzentrum
A36: Gretzenbach | B36: 2576 | C36: Olten | D36: U | E36: -
A37: Grindel | B37: 2617 | C37: Thierstein | D37: L | E37: - | F37: Keine Arbeitszone
A38: Günsberg | B38: 2547 | C38: Lebern | D38: L | E38: -
A39: Gunzgen | B39: 2578 | C39: Olten | D39: A | E39: -
A40: Hägendorf | B40: 2579 | C40: Olten | D40: U | E40: -
A41: Halten | B41: 2520 | C41: Wasseramt | D41: A | E41: - | F41: Keine Arbeitszone
A42: Härkingen | B42: 2402 | C42: Gäu | D42: A | E42: -
A43: Hauenstein-Ifenthal | B43: 2491 | C43: Gösgen | D43: L | E43: - | F43: Keine Arbeitszone
A44: Herbetswil | B44: 2424 | C44: Thal | D44: L | E44: -
A45: Himmelried | B45: 2618 | C45: Thierstein | D45: L | E45: -
A46: Hochwald | B46: 2475 | C46: Dorneck | D46: L | E46: -
A47: Hofstetten-Flüh | B47: 2476 | C47: Dorneck | D47: A | E47: -
A48: Holderbank | B48: 2425 | C48: Thal | D48: L | E48: -
A49: Horriwil | B49: 2523 | C49: Wasseramt | D49: A | E49: -
A50: Hubersdorf | B50: 2548 | C50: Lebern | D50: L | E50: - | F50: Keine Arbeitszone
A51: Hüniken | B51: 2524 | C51: Wasseramt | D51: L | E51: - | F51: Keine Arbeitszone
A52: Kammersrohr | B52: 2549 | C52: Lebern | D52: L | E52: - | F52: Weder Wohn-, Misch- und Zentrumszonen (nur Weilerzone) noch Arbeitszone ausgeschieden.
A53: Kappel | B53: 2580 | C53: Olten | D53: A | E53: -
A54: Kestenholz | B54: 2403 | C54: Gäu | D54: A | E54: -
A55: Kienberg | B55: 2492 | C55: Gösgen | D55: L | E55: -
A56: Kleinlützel | B56: 2619 | C56: Thierstein | D56: L | E56: -
A57: Kriegstetten | B57: 2525 | C57: Wasseramt | D57: A | E57: -
A58: Langendorf | B58: 2550 | C58: Lebern | D58: U | E58: -
A59: Laupersdorf | B59: 2426 | C59: Thal | D59: L | E59: Stützpunktgemeinde
A60: Lohn-Ammannsegg | B60: 2526 | C60: Wasseramt | D60: A | E60: -
A61: Lommiswil | B61: 2551 | C61: Lebern | D61: A | E61: -
A62: Lostorf | B62: 2493 | C62: Gösgen | D62: L | E62: Stützpunktgemeinde
A63: Lüsslingen-Nennigkofen | B63: 2464 | C63: Bucheggberg | D63: L | E63: -
A64: Luterbach | B64: 2527 | C64: Wasseramt | D64: A | E64: -
A65: Lüterkofen-Ichertswil | B65: 2455 | C65: Bucheggberg | D65: L | E65: Stützpunktgemeinde
A66: Lüterswil-Gächliwil | B66: 2456 | C66: Bucheggberg | D66: L | E66: -
A67: Matzendorf | B67: 2427 | C67: Thal | D67: L | E67: Stützpunktgemeinde
A68: Meltingen | B68: 2620 | C68: Thierstein | D68: L | E68: -
A69: Messen | B69: 2457 | C69: Bucheggberg | D69: L | E69: Stützpunktgemeinde
A70: Metzerlen-Mariastein | B70: 2477 | C70: Dorneck | D70: L | E70: -
A71: Mümliswil-Ramiswil | B71: 2428 | C71: Thal | D71: L | E71: Stützpunktgemeinde
A72: Neuendorf | B72: 2404 | C72: Gäu | D72: A | E72: -
A73: Niederbuchsiten | B73: 2405 | C73: Gäu | D73: L | E73: -
A74: Niedergösgen | B74: 2495 | C74: Gösgen | D74: U | E74: -
A75: Nuglar-St. Pantaleon | B75: 2478 | C75: Dorneck | D75: L | E75: -
A76: Nunningen | B76: 2621 | C76: Thierstein | D76: L | E76: Stützpunktgemeinde
A77: Oberbuchsiten | B77: 2406 | C77: Gäu | D77: A | E77: -
A78: Oberdorf | B78: 2553 | C78: Lebern | D78: A | E78: -
A79: Obergerlafingen | B79: 2528 | C79: Wasseramt | D79: A | E79: -
A80: Obergösgen | B80: 2497 | C80: Gösgen | D80: A | E80: -
A81: Oekingen | B81: 2529 | C81: Wasseramt | D81: A | E81: -
A82: Oensingen | B82: 2407 | C82: Gäu | D82: U | E82: Regionalzentrum
A83: Olten | B83: 2581 | C83: Olten | D83: U | E83: Hauptzentrum
A84: Recherswil | B84: 2530 | C84: Wasseramt | D84: A | E84: -
A85: Rickenbach | B85: 2582 | C85: Olten | D85: U | E85: -
A86: Riedholz | B86: 2554 | C86: Lebern | D86: A | E86: -
A87: Rodersdorf | B87: 2479 | C87: Dorneck | D87: A | E87: -
A88: Rüttenen | B88: 2555 | C88: Lebern | D88: A | E88: -
A89: Schnottwil | B89: 2461 | C89: Bucheggberg | D89: L | E89: Stützpunktgemeinde
A90: Schönenwerd | B90: 2583 | C90: Olten | D90: U | E90: -
A91: Seewen | B91: 2480 | C91: Dorneck | D91: L | E91: -
A92: Selzach | B92: 2556 | C92: Lebern | D92: A | E92: -
A93: Solothurn | B93: 2601 | C93: Solothurn | D93: U | E93: Hauptzentrum
A94: Starrkirch-Wil | B94: 2584 | C94: Olten | D94: U | E94: - | F94: Keine Arbeitszone
A95: Stüsslingen | B95: 2499 | C95: Gösgen | D95: L | E95: - | F95: Keine Arbeitszone
A96: Subingen | B96: 2532 | C96: Wasseramt | D96: A | E96: -
A97: Trimbach | B97: 2500 | C97: Gösgen | D97: U | E97: -
A98: Unterramsern | B98: 2463 | C98: Bucheggberg | D98: L | E98: -
A99: Walterswil | B99: 2585 | C99: Olten | D99: L | E99: -
A100: Wangen bei Olten | B100: 2586 | C100: Olten | D100: U | E100: -
A101: Welschenrohr-Gänsbrunnen | B101: 2430 | C101: Thal | D101: L | E101: Stützpunktgemeinde
A102: Winznau | B102: 2501 | C102: Gösgen | D102: A | E102: -
A103: Wisen | B103: 2502 | C103: Gösgen | D103: L | E103: -
A104: Witterswil | B104: 2481 | C104: Dorneck | D104: A | E104: -
A105: Wolfwil | B105: 2408 | C105: Gäu | D105: L | E105: Stützpunktgemeinde
A106: Zuchwil | B106: 2534 | C106: Wasseramt | D106: U | E106: -
A107: Zullwil | B107: 2622 | C107: Thierstein | D107: L | E107: -

Sheet Grundlagedaten_2014 (hidden)
A1: BFS-Nummer | B1: Gemeinde | C1: Bezirk | D1: HR | E1: unbebaute WMZ | F1: bebaute WMZ | G1: unb/beb WMZ | H1: Einwohner in WMZ | I1: Beschäftige in WMZ | J1: Summe EW+BS | K1: Dichtewert WMZ (DWMZ) | L1: Abweichung Dichtewert WMZ (AWMZ) | M1: Dichtewert WMZ (EW) | N1: Punb | O1: Pb | P1: Pbeb | Q1: Ptheo | R1: Bev (2030) | S1: BzB (2030) | U1: unbebaute AZ | V1: bebaute AZ | W1: unb/beb AZ | X1: Dichtewert DAZ | Y1: Abweichung Dichtewert AAZ | Z1: Beschäftigte in AZ
A2: 1 | B2: 2 | C2: 3 | D2: 4 | E2: 5 | F2: 6 | G2: 7 | H2: 8 | I2: 9 | J2: 10 | K2: 11 | L2: 12 | M2: 13 | N2: 14 | O2: 15 | P2: 16 | Q2: 17 | R2: 18 | S2: 19 | T2: 20 | U2: 21 | V2: 22 | W2: 23 | X2: 24 | Y2: 25 | Z2: 26
E3: [ha] | F3: [ha] | G3: [%] | H3: [EW] | I3: [BS] | J3: [EW+BS] | K3: [m2/(EW+BS)] | L3: [%] | M3: [m2/(EW)] | N3: [EW] | O3: [EW] | P3: [EW] | Q3: [EW] | R3: [EW] | S3: [%] | U3: [ha] | V3: [ha] | W3: [%] | X3: [m2/(BS)] | Y3: [%] | Z3: [BS]
A4: 2421 | B4: Aedermannsdorf | C4: Thal | D4: L | E4: 4.94 | F4: 15.19 | G4: 0.3252139566 | H4: 398 | I4: 99 | J4: 497 | K4: 305.6338028 | L4: -0.1973630811 | M4: 381.6582915 | N4: 161.4462316 | O4: 98.43082141 | P4: =O4/3 -> 32.8102738 | Q4: 592.2565054 | R4: 468.7352368 | S4: 0.7914395747 | U4: 0 | V4: 3.57 | W4: 0 | X4: 1020 | Y4: -1.226075322
A5: 2511 | B5: Aeschi | C5: Wasseramt | D5: L | E5: 4.6 | F5: 31.19 | G5: 0.1474831677 | H5: 1069 | I5: 186.185459 | J5: 1255.185459 | K5: 248.4891757 | L5: 0.02650897169 | M5: 291.7680075 | N5: 157.6595063 | O5: 0 | P5: =O5/3 -> 0 | Q5: 1226.659506 | R5: 1138.041941 | S5: 0.9277569982 | U5: 0 | V5: 0
A6: 2541 | B6: Balm bei Günsberg | C6: Lebern | D6: L | E6: 1.41 | F6: 6.51 | G6: 0.2165898618 | H6: 148 | I6: 24 | J6: 172 | K6: 378.4883721 | L6: -0.4827810248 | M6: 439.8648649 | N6: 46.08080699 | O6: 64.75606632 | P6: 21.58535544 | Q6: 215.6661624 | R6: 164.1803385 | S6: 0.7612707375 | U6: 0 | V6: 0
A7: 2422 | B7: Balsthal | C7: Thal | D7: U | E7: 17.91 | F7: 116.19 | G7: 0.1541440744 | H7: 5378 | I7: 1118.436757 | J7: 6496.436757 | K7: 178.8518912 | L7: -0.1936549028 | M7: 216.0468576 | N7: 972.9127155 | O7: 933.7101293 | P7: 311.2367098 | Q7: 6662.149425 | R7: 6023.217737 | S7: 0.904095263 | U7: 8.35 | V7: 37.44 | W7: 0.2230235043 | X7: 271.6331374 | Y7: -0.1764964747
A8: 2611 | B8: Bärschwil | C8: Thierstein | D8: L | E8: 6.66 | F8: 24.64 | G8: 0.2702922078 | H8: 664 | I8: 155.9511052 | J8: 819.9511052 | K8: 300.5057234 | L8: -0.1772731141 | M8: 371.0843373 | N8: 217.6582798 | O8: 141.2702725 | P8: 47.09009084 | Q8: 928.7483707 | R8: 779.4936911 | S8: 0.8392948141 | U8: 0.34 | V8: 1.93 | W8: 0.1761658031 | X8: 679.7934322 | Y8: -0.4835993955
A9: 2471 | B9: Bättwil | C9: Dorneck | D9: A | E9: 1.39 | F9: 19.14 | G9: 0.07262277952 | H9: 1109 | I9: 221.720429 | J9: 1330.720429 | K9: 143.8318642 | L9: 0.3221066249 | M9: 172.587917 | N9: 80.53866249 | O9: 0 | P9: 0 | Q9: 1189.538662 | R9: 1646.352523 | S9: 1.384026073 | U9: 1.17 | V9: 5.76 | W9: 0.203125 | X9: 204.9822064 | Y9: 0.2779734786
A10: 2612 | B10: Beinwil | C10: Thierstein | D10: L | E10: 0.99 | F10: 3.03 | G10: 0.3267326733 | H10: 88 | I10: 28 | J10: 116 | K10: 261.2068966 | L10: -0.02331447496 | M10: 344.3181818 | N10: 32.35460916 | O10: 11.02471289 | P10: 3.674904298 | Q10: 124.0295135 | R10: 127.5656306 | S10: 1.028510288 | U10: 0.03 | V10: 0.52 | W10: 0.05769230769 | X10: - | Y10: -
A11: 2542 | B11: Bellach | C11: Lebern | D11: U | E11: 5.73 | F11: 80.29 | G11: 0.07136629717 | H11: 4824 | I11: 639.5547107 | J11: 5463.554711 | K11: 146.9556072 | L11: 0.01922042945 | M11: 166.4386401 | N11: 344.2710176 | O11: 0 | P11: 0 | Q11: 5168.271018 | R11: 5152.942635 | S11: 0.9970341372 | U11: 1.18 | V11: 37.17 | W11: 0.03174603175 | X11: 210.5258931 | Y11: 0.08817100373
A12: 2543 | B12: Bettlach | C12: Lebern | D12: U | E12: 11.27 | F12: 83.52 | G12: 0.1349377395 | H12: 4537 | I12: 534.867439 | J12: 5071.867439 | K12: 164.6730736 | L12: -0.09902568175 | M12: 184.0864007 | N12: 612.2125239 | O12: 0 | P12: 0 | Q12: 5149.212524 | R12: 4812.851452 | S12: 0.9346771821 | U12: 5.92 | V12: 18.67 | W12: 0.3170862346 | X12: 112.6516008 | Y12: 0.5120837891
A13: 2513 | B13: Biberist | C13: Wasseramt | D13: U | E13: 8.93 | F13: 162.62 | G13: 0.0549132948 | H13: 7329 | I13: 1870.089359 | J13: 9199.089359 | K13: 176.7783676 | L13: -0.1798162365 | M13: 221.8856597 | N13: 485.0982998 | O13: 1504.895354 | P13: 501.6317848 | Q13: 8315.730085 | R13: 7953.191173 | S13: 0.9564032372 | U13: 3.51 | V13: 51.75 | W13: 0.06782608696 | X13: 752.0742253 | Y13: -2.257381199
A14: 2445 | B14: Biezwil | C14: Bucheggberg | D14: L | E14: 0.54 | F14: 7.96 | G14: 0.06783919598 | H14: 205 | I14: 108 | J14: 313 | K14: 254.313099 | L14: 0.003692938986 | M14: 388.2926829 | N14: 17.64796863 | O14: 55.14413024 | P14: 18.38137675 | Q14: 241.0293454 | R14: 325.903074 | S14: 1.352130271 | U14: 0 | V14: 0
A15: 2514 | B15: Bolken | C15: Wasseramt | D15: L | E15: 1.65 | F15: 13.03 | G15: 0.1266308519 | H15: 510 | I15: 30 | J15: 540 | K15: 241.2962963 | L15: 0.05468808055 | M15: 255.4901961 | N15: 64.58173446 | O15: 0 | P15: 0 | Q15: 574.5817345 | R15: 666.0211237 | S15: 1.159140787 | U15: 0 | V15: 0
A16: 2571 | B16: Boningen | C16: Olten | D16: A | E16: 2.61 | F16: 17.95 | G16: 0.1454038997 | H16: 682 | I16: 63 | J16: 745 | K16: 240.9395973 | L16: -0.1355714378 | M16: 263.1964809 | N16: 104.518641 | O16: 36.81594105 | P16: 12.27198035 | Q16: 798.7906214 | R16: 819.9712789 | S16: 1.026515907 | U16: 1.95 | V16: 7.41 | W16: 0.2631578947 | X16: 386.2584842 | Y16: -0.360551604
A17: 2613 | B17: Breitenbach | C17: Thierstein | D17: U | E17: 18.68 | F17: 68.47 | G17: 0.2728202132 | H17: 3314 | I17: 775.3666822 | J17: 4089.366682 | K17: 167.4342394 | L17: -0.1174536619 | M17: 206.6083283 | N17: 1014.7409 | O17: 405.449114 | P17: 135.1497047 | Q17: 4463.890605 | R17: 3527.662023 | S17: 0.7902662353 | U17: 5.88 | V17: 24.09 | W17: 0.2440846824 | X17: 260.7560274 | Y17: -0.1293855744
A18: 2465 | B18: Buchegg | C18: Bucheggberg | D18: L | E18: 8.56 | F18: 78.93 | G18: 0.1084505258 | H18: 1895 | I18: 456.8961959 | J18: 2351.896196 | K18: 335.6015463 | L18: -0.3147658987 | M18: 416.5171504 | N18: 279.7529843 | O18: 684.5447488 | P18: 228.1815829 | Q18: 2402.934567 | R18: 2501.994615 | S18: 1.041224613 | U18: 0.27 | V18: 2.63 | W18: 0.102661597 | X18: 2191.666667 | Y18: -3.78315204
A19: 2472 | B19: Büren | C19: Dorneck | D19: L | E19: 6.02 | F19: 21.58 | G19: 0.2789620019 | H19: 855 | I19: 117.3884228 | J19: 972.3884228 | K19: 221.9277759 | L19: 0.1305669625 | M19: 252.3976608 | N19: 238.5125116 | O19: 0 | P19: 0 | Q19: 1093.512512 | R19: 884.1620156 | S19: 0.8085522627 | U19: 0 | V19: 0
A20: 2614 | B20: Büsserach | C20: Thierstein | D20: U | E20: 16.03 | F20: 51.42 | G20: 0.3117464022 | H20: 2038 | I20: 365.5557108 | J20: 2403.555711 | K20: 213.9330483 | L20: -0.4277860317 | M20: 252.3061825 | N20: 870.7867577 | O20: 755.253592 | P20: 251.7511973 | Q20: 3160.537955 | R20: 2177.232293 | S20: 0.6888802868 | U20: 3.75 | V20: 13.81 | W20: 0.2715423606 | X20: 361.8430903 | Y20: -0.5672135004
A21: 2572 | B21: Däniken | C21: Olten | D21: U | E21: 6.68 | F21: 52.93 | G21: 0.1262044209 | H21: 2585 | I21: 362.6179205 | J21: 2947.61792 | K21: 179.5687278 | L21: -0.1984390598 | M21: 204.7582205 | N21: 362.8730843 | O21: 290.2802921 | P21: 96.76009738 | Q21: 3044.633182 | R21: 2586.536175 | S21: 0.8495395079 | U21: 18.1 | V21: 45.26 | W21: 0.3999116217 | X21: 391.3077139 | Y21: -0.6948305731
A22: 2516 | B22: Deitingen | C22: Wasseramt | D22: A | E22: 8.26 | F22: 49.83 | G22: 0.1657635962 | H22: 2087 | I22: 266.8986578 | J22: 2353.898658 | K22: 211.6913565 | L22: 0.002278327088 | M22: 238.7637758 | N22: 345.9486253 | O22: 0 | P22: 0 | Q22: 2432.948625 | R22: 2236.457588 | S22: 0.91923749 | U22: 3.14 | V22: 9.26 | W22: 0.3390928726 | X22: 223.1488207 | Y22: 0.2139836448
A23: 2517 | B23: Derendingen | C23: Wasseramt | D23: U | E23: 8.44 | F23: 103.31 | G23: 0.08169586681 | H23: 5822 | I23: 1174.556869 | J23: 6996.556869 | K23: 147.6583439 | L23: 0.01453037534 | M23: 177.4476125 | N23: 475.6333366 | O23: 0 | P23: 0 | Q23: 6297.633337 | R23: 6671.67845 | S23: 1.059394552 | U23: 9.98 | V23: 18.47 | W23: 0.5403356795 | X23: 266.4826749 | Y23: -0.1541888101
A24: 2473 | B24: Dornach | C24: Dorneck | D24: U | E24: 14.13 | F24: 117.13 | G24: 0.1206351917 | H24: 6199 | I24: 1618.239048 | J24: 7817.239048 | K24: 149.8355101 | L24: 0 | M24: 188.9498306 | N24: 767.5743534 | O24: 163.7731082 | P24: 54.59103608 | Q24: 7021.16539 | R24: 6348.124596 | S24: 0.9041411566 | U24: 2.64 | V24: 19.28 | W24: 0.1369294606 | X24: 465.7319208 | Y24: -1.017176432
A25: 2535 | B25: Drei Höfe | C25: Wasseramt | D25: L | E25: 2.81 | F25: 22.1 | G25: 0.1271493213 | H25: 648 | I25: 62.04430015 | J25: 710.0443002 | K25: 311.2481854 | L25: -0.2193582086 | M25: 341.0493827 | N25: 91.83479975 | O25: 74.25945708 | P25: 24.75315236 | Q25: 764.5879521 | R25: 846.7606734 | S25: 1.10747321 | U25: 0 | V25: 1.12 | W25: 0
A26: 2573 | B26: Dulliken | C26: Olten | D26: U | E26: 10.52 | F26: 74.43 | G26: 0.1413408572 | H26: 4566 | I26: 465.7205661 | J26: 5031.720566 | K26: 147.9215688 | L26: 0.01277361576 | M26: 163.0091984 | N26: 645.3623539 | O26: 0 | P26: 0 | Q26: 5211.362354 | R26: 4582.887521 | S26: 0.8794029679 | U26: 13.84 | V26: 28.32 | W26: 0.488700565 | X26: 449.9487692 | Y26: -0.9488165023
A27: 2401 | B27: Egerkingen | C27: Gäu | D27: U | E27: 7.85 | F27: 53.32 | G27: 0.1472243061 | H27: 3130 | I27: 826.1798034 | J27: 3956.179803 | K27: 134.776483 | L27: 0.1005037261 | M27: 170.3514377 | N27: 460.812078 | O27: 0 | P27: 0 | Q27: 3590.812078 | R27: 3298.028441 | S27: 0.9184631135 | U27: 7.23 | V27: 38.78 | W27: 0.1864363074 | X27: 177.6572597 | Y27: 0.2305315112
A28: 2574 | B28: Eppenberg-Wöschnau | C28: Olten | D28: A | E28: 1.07 | F28: 6.92 | G28: 0.1546242775 | H28: 266 | I28: 22 | J28: 288 | K28: 240.2777778 | L28: -0.1324522188 | M28: 260.1503759 | N28: 42.84863827 | O28: 11.11455778 | P28: 3.704852592 | Q28: 312.5534909 | R28: 308.3717933 | S28: 0.986620858 | U28: 2.22 | V28: 7.45 | W28: 0.2979865772 | X28: 423.2101692 | Y28: 0.07637479065
A29: 2503 | B29: Erlinsbach SO | C29: Gösgen | D29: A | E29: 10.04 | F29: 72.97 | G29: 0.1375907907 | H29: 3120 | I29: 400.0527328 | J29: 3520.052733 | K29: 207.2980308 | L29: 0.0229844925 | M29: 233.8782051 | N29: 429.2832671 | O29: 0 | P29: 0 | Q29: 3549.283267 | R29: 3199.890702 | S29: 0.9015596844 | U29: 2.74 | V29: 6.45 | W29: 0.4248062016 | X29: 410.8951754 | Y29: 0.1032513629
A30: 2615 | B30: Erschwil | C30: Thierstein | D30: L | E30: 8.79 | F30: 23.79 | G30: 0.369482976 | H30: 851 | I30: 156.5829146 | J30: 1007.582915 | K30: 236.1096011 | L30: 0.07500768304 | M30: 279.5534665 | N30: 314.4300126 | O30: -1.136868377e-13 | P30: -3.789561257e-14 | Q30: 1165.430013 | R30: 1001.706678 | S30: 0.8595168028 | U30: 0.47 | V30: 1.29 | W30: 0.3643410853 | X30: 52.00137747 | Y30: 0.8865108009
A31: 2518 | B31: Etziken | C31: Wasseramt | D31: L | E31: 6.61 | F31: 22.22 | G31: 0.297479748 | H31: 663 | I31: 221 | J31: 884 | K31: 251.3574661 | L31: 0.01527204371 | M31: 335.1432881 | N31: 216.0242087 | O31: 63.18122789 | P31: 21.0604093 | Q31: 900.084618 | R31: 681.4217209 | S31: 0.7570640663 | U31: 0 | V31: 2.54 | W31: 0 | X31: 44.71830986 | Y31: 0.9024055627
A32: 2616 | B32: Fehren | C32: Thierstein | D32: L | E32: 4.61 | F32: 15.67 | G32: 0.294192725 | H32: 593 | I32: 50 | J32: 643 | K32: 243.7013997 | L32: 0.04526575232 | M32: 264.2495784 | N32: 174.4562859 | O32: 0 | P32: 0 | Q32: 767.4562859 | R32: 764.3004708 | S32: 0.9958879546 | U32: 0
A33: 2544 | B33: Feldbrunnen-St. Niklaus | C33: Lebern | D33: A | E33: 0.93 | F33: 21.42 | G33: 0.04341736695 | H33: 881 | I33: 183.2 | J33: 1064.2 | K33: 201.2779553 | L33: 0.05135768626 | M33: 243.1328036 | N33: 38.25070028 | O33: 0 | P33: 0 | Q33: 919.2507003 | R33: 1189.844754 | S33: 1.294363718 | U33: 0.03 | V33: 0.37 | W33: 0.08108108108 | X33: 152.2151899 | Y33: 0.4638392962
A34: 2545 | B34: Flumenthal | C34: Lebern | D34: L | E34: 3.29 | F34: 21.52 | G34: 0.1528810409 | H34: 879 | I34: 153 | J34: 1032 | K34: 208.5271318 | L34: 0.1830658563 | M34: 244.8236633 | N34: 134.3824349 | O34: 0 | P34: 0 | Q34: 1013.382435 | R34: 1065.20112 | S34: 1.051134382 | U34: 1.49 | V34: 1.83 | W34: 0.8142076503 | X34: 1016.666667 | Y34: -1.218800566
A35: 2575 | B35: Fulenbach | C35: Olten | D35: L | E35: 6.41 | F35: 41.96 | G35: 0.1527645377 | H35: 1507 | I35: 242.1879463 | J35: 1749.187946 | K35: 239.8827415 | L35: 0.06022587869 | M35: 278.4339748 | N35: 230.2161582 | O35: 2.273736754e-13 | P35: 7.579122515e-14 | Q35: 1737.216158 | R35: 1734.688739 | S35: 0.9985451328 | U35: 2.63 | V35: 6.44 | W35: 0.4083850932 | X35: 270.0489901 | Y35: 0.4106378504
A36: 2474 | B36: Gempen | C36: Dorneck | D36: L | E36: 4.62 | F36: 21.22 | G36: 0.2177191329 | H36: 777 | I36: 486.7027482 | J36: 1263.702748 | K36: 167.919236 | L36: 0.3421529558 | M36: 273.1016731 | N36: 169.1677663 | O36: 0 | P36: 0 | Q36: 946.1677663 | R36: 911.4667565 | S36: 0.9633246756 | U36: 0 | V36: 0
A37: 2519 | B37: Gerlafingen | C37: Wasseramt | D37: U | E37: 6.77 | F37: 81.01 | G37: 0.08356992964 | H37: 4801 | I37: 714.3077665 | J37: 5515.307767 | K37: 146.8821024 | L37: 0.01971099959 | M37: 168.7356801 | N37: 401.2192322 | O37: 0 | P37: 0 | Q37: 5202.219232 | R37: 5281.977167 | S37: 1.015331521 | U37: 4.04 | V37: 34.98 | W37: 0.1154945683 | X37: 396.7841437 | Y37: -0.7185500661
A38: 2546 | B38: Grenchen | C38: Lebern | D38: U | E38: 38.58 | F38: 276.18 | G38: 0.1396915055 | H38: 15640 | I38: 8777.049012 | J38: 24417.04901 | K38: 113.1094916 | L38: 0.2451089094 | M38: 176.5856777 | N38: 2184.775147 | O38: -1.818989404e-12 | P38: -6.063298012e-13 | Q38: 17824.77515 | R38: 16796.70147 | S38: 0.9423233298 | U38: 13.44 | V38: 33.16 | W38: 0.4053075995 | X38: 196.3902305 | Y38: 0.1493953352
A39: 2576 | B39: Gretzenbach | C39: Olten | D39: U | E39: 10.7 | F39: 53.85 | G39: 0.1987000929 | H39: 2308 | I39: 376.7420894 | J39: 2684.742089 | K39: 200.5779259 | L39: -0.3386541406 | M39: 233.3188908 | N39: 581.2488027 | O39: 617.2568247 | P39: 205.7522749 | Q39: 3095.001078 | R39: 2509.393691 | S39: 0.8107892786 | U39: 13.12 | V39: 21.19 | W39: 0.6191599811 | X39: 424.21118 | Y39: -0.8373419479
A40: 2617 | B40: Grindel | C40: Thierstein | D40: L | E40: 4.03 | F40: 11.1 | G40: 0.3630630631 | H40: 419 | I40: 51.92027623 | J40: 470.9202762 | K40: 235.708687 | L40: 0.07657831978 | M40: 264.9164678 | N40: 152.1234234 | O40: 5.684341886e-14 | P40: 1.894780629e-14 | Q40: 571.1234234 | R40: 503.8425738 | S40: 0.8821956045 | U40: 0.24 | V40: 0
A41: 2547 | B41: Günsberg | C41: Lebern | D41: L | E41: 4.84 | F41: 29.86 | G41: 0.1620897522 | H41: 1058 | I41: 179.2060347 | J41: 1237.206035 | K41: 241.3502615 | L41: 0.05447666438 | M41: 282.2306238 | N41: 171.4909578 | O41: 0 | P41: 0 | Q41: 1229.490958 | R41: 1189.465845 | S41: 0.9674457852 | U41: 1.13 | V41: 0.72 | W41: 1.569444444
A42: 2578 | B42: Gunzgen | C42: Olten | D42: A | E42: 5.65 | F42: 34.39 | G42: 0.1642919453 | H42: 1583 | I42: 276.6834377 | J42: 1859.683438 | K42: 184.9239462 | L42: 0.1284357 | M42: 217.2457359 | N42: 260.0741495 | O42: 0 | P42: 0 | Q42: 1843.074149 | R42: 1944.876605 | S42: 1.055235138 | U42: 3.61 | V42: 6.45 | W42: 0.5596899225 | X42: 305.0598075 | Y42: -0.07453849517
A43: 2579 | B43: Hägendorf | C43: Olten | D43: U | E43: 15.21 | F43: 104.25 | G43: 0.1458992806 | H43: 4536 | I43: 820.1904331 | J43: 5356.190433 | K43: 194.6346033 | L43: -0.2989884921 | M43: 229.8280423 | N43: 826.2424569 | O43: 1127.101652 | P43: 375.7005508 | Q43: 5737.943008 | R43: 5164.905976 | S43: 0.9001319757 | U43: 9.11 | V43: 27.71 | W43: 0.3287621797 | X43: 143.0041949 | Y43: 0.3806207415
A44: 2520 | B44: Halten | C44: Wasseramt | D44: A | E44: 1.69 | F44: 20.94 | G44: 0.08070678128 | H44: 813 | I44: 62.14726083 | J44: 875.1472608 | K44: 239.2740164 | L44: -0.1277213949 | M44: 257.5645756 | N44: 67.67682119 | O44: 25.55185547 | P44: 8.517285156 | Q44: 889.1941063 | R44: 953.2914279 | S44: 1.072084735 | U44: 0 | V44: 0
A45: 2402 | B45: Härkingen | C45: Gäu | D45: A | E45: 6.13 | F45: 33.79 | G45: 0.1814146197 | H45: 1382 | I45: 1599.745856 | J45: 2981.745856 | K45: 113.3228707 | L45: 0.4658984383 | M45: 244.5007236 | N45: 250.7150044 | O45: 0 | P45: 0 | Q45: 1632.715004 | R45: 1432.101499 | S45: 0.8771288897 | U45: 11.97 | V45: 41.39 | W45: 0.2892002899 | X45: 229.2330155 | Y45: 0.1925527602
A46: 2491 | B46: Hauenstein-Ifenthal | C46: Gösgen | D46: L | E46: 1.32 | F46: 7.35 | G46: 0.1795918367 | H46: 260 | I46: 26.33333333 | J46: 286.3333333 | K46: 256.69383 | L46: -0.005633906969 | M46: 282.6923077 | N46: 46.69387755 | O46: 0 | P46: 0 | Q46: 306.6938776 | R46: 371.876171 | S46: 1.212532099 | U46: 0 | V46: 0
A47: 2424 | B47: Herbetswil | C47: Thal | D47: L | E47: 3.19 | F47: 12.72 | G47: 0.2507861635 | H47: 344 | I47: 29 | J47: 373 | K47: 341.0187668 | L47: -0.3359886161 | M47: 369.7674419 | N47: 104.2537406 | O47: 71.70770561 | P47: 23.90256854 | Q47: 472.1563092 | R47: 372.4313498 | S47: 0.7887882521 | U47: 0.8 | V47: 1.43 | W47: 0.5594405594 | X47: 125.1814749 | Y47: 0.726800596
A48: 2618 | B48: Himmelried | C48: Thierstein | D48: L | E48: 7.48 | F48: 29.93 | G48: 0.2499164718 | H48: 819 | I48: 150.9835326 | J48: 969.9835326 | K48: 308.5619394 | L48: -0.2088344648 | M48: 365.4456654 | N48: 244.457047 | O48: 159.1550023 | P48: 53.05166743 | Q48: 1116.508714 | R48: 819 | S48: 0.7335365944 | U48: 0 | V48: 0.64 | W48: 0 | X48: 533.3333333 | Y48: -0.1639609526
A49: 2475 | B49: Hochwald | C49: Dorneck | D49: L | E49: 8.72 | F49: 36.83 | G49: 0.236763508 | H49: 1191 | I49: 246.5578417 | J49: 1437.557842 | K49: 256.1983868 | L49: -0.003692938986 | M49: 309.2359362 | N49: 284.982012 | O49: 12.65682373 | P49: 4.218941242 | Q49: 1480.200953 | R49: 1338.227259 | S49: 0.9040848516 | U49: 0 | V49: 0.83 | W49: 0 | X49: 2075 | Y49: -3.528535581
A50: 2476 | B50: Hofstetten-Flüh | C50: Dorneck | D50: A | E50: 12.73 | F50: 76 | G50: 0.1675 | H50: 3092 | I50: 419.4201631 | J50: 3511.420163 | K50: 216.4366452 | L50: -0.02008667372 | M50: 245.7956016 | N50: 517.91 | O50: 0 | P50: 0 | Q50: 3609.91 | R50: 3554.358862 | S50: 0.9846114894 | U50: 1.37 | V50: 3.32 | W50: 0.4126506024 | X50: 323.6091285 | Y50: -0.1398763699
A51: 2425 | B51: Holderbank | C51: Thal | D51: L | E51: 2.66 | F51: 16.99 | G51: 0.1565626839 | H51: 524 | I51: 95.48155957 | J51: 619.4815596 | K51: 274.261594 | L51: -0.07445807443 | M51: 324.2366412 | N51: 86.93258624 | O51: 31.25738352 | P51: 10.41912784 | Q51: 621.3517141 | R51: 691.5224534 | S51: 1.112932398 | U51: 0.86 | V51: 1.38 | W51: 0.6231884058 | X51: 153.3333333 | Y51: 0.6653612261
A52: 2523 | B52: Horriwil | C52: Wasseramt | D52: A | E52: 3.33 | F52: 21.06 | G52: 0.1581196581 | H52: 785 | I52: 87 | J52: 872 | K52: 241.5137615 | L52: -0.1382775286 | M52: 268.2802548 | N52: 133.3513696 | O52: 58.35731023 | P52: 19.45243674 | Q52: 937.8038063 | R52: 833.8728591 | S52: 0.8891762365 | U52: 0.24 | V52: 2.17 | W52: 0.1105990783 | X52: 140.5580468 | Y52: 0.5049002575
A53: 2548 | B53: Hubersdorf | C53: Lebern | D53: L | E53: 1.76 | F53: 19.11 | G53: 0.09209837781 | H53: 708 | I53: 56 | J53: 764 | K53: 250.1308901 | L53: 0.02007732643 | M53: 269.9152542 | N53: 65.20565149 | O53: 0 | P53: 0 | Q53: 773.2056515 | R53: 708 | S53: 0.9156684236 | U53: 0 | V53: 0
A54: 2524 | B54: Hüniken | C54: Wasseramt | D54: L | E54: 0.82 | F54: 3.32 | G54: 0.2469879518 | H54: 68 | I54: 5 | J54: 73 | K54: 454.7945205 | L54: -0.7817210118 | M54: 488.2352941 | N54: 26.79876719 | O54: 40.50232568 | P54: 13.50077523 | Q54: 108.2995424 | R54: 106.5722887 | S54: 0.9840511445 | U54: 0 | V54: 0
A55: 2549 | B55: Kammersrohr | C55: Lebern | D55: L | H55: 23 | J55: 23 | R55: 23
A56: 2580 | B56: Kappel | C56: Olten | D56: A | E56: 13.28 | F56: 61.31 | G56: 0.2166041429 | H56: 2923 | I56: 392.7643329 | J56: 3315.764333 | K56: 184.9045766 | L56: 0.1285269909 | M56: 209.7502566 | N56: 633.1339096 | O56: 0 | P56: 0 | Q56: 3556.13391 | R56: 2980.972738 | S56: 0.8382622292 | U56: 2.52 | V56: 4.33 | W56: 0.5819861432 | X56: 350.2091435 | Y56: -0.2335718991
A57: 2403 | B57: Kestenholz | C57: Gäu | D57: A | E57: 8.02 | F57: 47.34 | G57: 0.1694127588 | H57: 1692 | I57: 354.1123205 | J57: 2046.11232 | K57: 231.3655977 | L57: -0.09044825913 | M57: 279.787234 | N57: 321.1645597 | O57: 203.7519025 | P57: 67.91730082 | Q57: 2081.081861 | R57: 1845.721872 | S57: 0.8869049831 | U57: 1.82 | V57: 6.53 | W57: 0.2787136294 | X57: 264.5678778 | Y57: 0.06808972424
A58: 2492 | B58: Kienberg | C58: Gösgen | D58: L | E58: 3.33 | F58: 13.06 | G58: 0.2549770291 | H58: 350 | I58: 32 | J58: 382 | K58: 341.8848168 | L58: -0.3393814879 | M58: 373.1428571 | N58: 108.8291399 | O58: 76.81938957 | P58: 25.60646319 | Q58: 484.4356031 | R58: 364.4780591 | S58: 0.7523766973 | U58: 0.03 | V58: 2.01 | W58: 0.01492537313 | X58: 5025 | Y58: -9.966694601
A59: 2619 | B59: Kleinlützel | C59: Thierstein | D59: L | E59: 10.89 | F59: 33.06 | G59: 0.3294010889 | H59: 1084 | I59: 284.3329211 | J59: 1368.332921 | K59: 241.6078682 | L59: 0.0534674543 | M59: 304.9815498 | N59: 357.0707804 | O59: 0 | P59: 0 | Q59: 1441.07078 | R59: 1232.509682 | S59: 0.855273522 | U59: 0.11 | V59: 3.18 | W59: 0.03459119497 | X59: 100.3154574 | Y59: 0.7810688587
A60: 2525 | B60: Kriegstetten | C60: Wasseramt | D60: A | E60: 2.77 | F60: 31.87 | G60: 0.0869155946 | H60: 1201 | I60: 358.6802683 | J60: 1559.680268 | K60: 204.3367519 | L60: 0.03694128435 | M60: 265.3621982 | N60: 110.925914 | O60: 75.24869311 | P60: 25.0828977 | Q60: 1337.008812 | R60: 1338.850316 | S60: 1.001377332 | U60: 0 | V60: 0.37 | W60: 0 | X60: 86.04651163 | Y60: 0.6969109438
A61: 2550 | B61: Langendorf | C61: Lebern | D61: U | E61: 6.78 | F61: 62.71 | G61: 0.1081167278 | H61: 3625 | I61: 652.7759119 | J61: 4277.775912 | K61: 146.5948691 | L61: 0.02162799002 | M61: 172.9931034 | N61: 391.9231383 | O61: 0 | P61: 0 | Q61: 4016.923138 | R61: 3948.334349 | S61: 0.9829250431 | U61: 0.97 | V61: 10.64 | W61: 0.09116541353 | X61: 75.31142068 | Y61: 0.6738114437
A62: 2426 | B62: Laupersdorf | C62: Thal | D62: L | E62: 7.97 | F62: 36.99 | G62: 0.2154636388 | H62: 1450 | I62: 263.8495094 | J62: 1713.849509 | K62: 215.8299185 | L62: 0.1544561699 | M62: 255.1034483 | N62: 312.4222763 | O62: 0 | P62: 0 | Q62: 1762.422276 | R62: 1618.172865 | S62: 0.9181527529 | U62: 1.22 | V62: 3.22 | W62: 0.3788819876 | X62: 392.6829268 | Y62: 0.142998262
A63: 2526 | B63: Lohn-Ammannsegg | C63: Wasseramt | D63: A | E63: 8.95 | F63: 67.35 | G63: 0.132887899 | H63: 2552 | I63: 615.0545293 | J63: 3167.054529 | K63: 212.6581635 | L63: -0.002278327088 | M63: 263.9106583 | N63: 358.4068341 | O63: 145.0614836 | P63: 48.35382785 | Q63: 2958.760662 | R63: 3006.365465 | S63: 1.01608944 | U63: 0 | V63: 7.26 | W63: 0 | X63: 451.7667975 | Y63: -0.5912971913
A64: 2551 | B64: Lommiswil | C64: Lebern | D64: A | E64: 6.24 | F64: 40.71 | G64: 0.1532792926 | H64: 1394 | I64: 97.10301737 | J64: 1491.103017 | K64: 273.0193657 | L64: -0.286766464 | M64: 292.0373027 | N64: 249.8836475 | O64: 236.250527 | P64: 78.75017568 | Q64: 1722.633823 | R64: 1618.563696 | S64: 0.9395866224 | U64: 1.04 | V64: 0.17 | W64: 6.117647059 | X64: 130.7692308 | Y64: 0.5393802494
A65: 2493 | B65: Lostorf | C65: Gösgen | D65: L | E65: 15.95 | F65: 99.44 | G65: 0.1603982301 | H65: 3440 | I65: 518.9708096 | J65: 3958.97081 | K65: 251.176391 | L65: 0.01598143057 | M65: 289.0697674 | N65: 551.7699115 | O65: 0 | P65: 0 | Q65: 3991.769912 | R65: 4058.063224 | S65: 1.016607498 | U65: 3.61 | V65: 7.35 | W65: 0.4911564626 | X65: 377.7799743 | Y65: 0.1755228648
A66: 2464 | B66: Lüsslingen-Nennigkofen | C66: Bucheggberg | D66: L | E66: 5.56 | F66: 29.48 | G66: 0.1886024423 | H66: 843 | I66: 119.0555556 | J66: 962.0555556 | K66: 306.4272103 | L66: -0.2004713655 | M66: 349.7034401 | N66: 181.7087141 | O66: 120.4483618 | P66: 40.14945392 | Q66: 1064.858168 | R66: 998.2377598 | S66: 0.9374372943 | U66: 1.6 | V66: 12.18 | W66: 0.13136289 | X66: 319.4638116 | Y66: 0.3027936204
A67: 2527 | B67: Luterbach | C67: Wasseramt | D67: A | E67: 7.75 | F67: 66.24 | G67: 0.1169987923 | H67: 3324 | I67: 482.4641219 | J67: 3806.464122 | K67: 174.0197671 | L67: 0.1798281422 | M67: 199.2779783 | N67: 388.9039855 | O67: 0 | P67: 0 | Q67: 3712.903986 | R67: 3406.901085 | S67: 0.9175839447 | U67: 22.98 | V67: 52.38 | W67: 0.4387170676 | X67: 417.8619405 | Y67: -0.4718711862
A68: 2455 | B68: Lüterkofen-Ichertswil | C68: Bucheggberg | D68: L | E68: 4.61 | F68: 23.31 | G68: 0.1977691978 | H68: 599 | I68: 158 | J68: 757 | K68: 307.9260238 | L68: -0.2063431766 | M68: 389.148581 | N68: 150.6613619 | O68: 162.8039794 | P68: =O68/3 -> 54.26799313 | Q68: 803.929355 | R68: 745.7113309 | S68: 0.9275831593 | U68: 0.04 | V68: 0.76 | W68: 0.05263157895
A69: 2456 | B69: Lüterswil-Gächliwil | C69: Bucheggberg | D69: L | E69: 1.99 | F69: 8.88 | G69: 0.2240990991 | H69: 254 | I69: 110 | J69: 364 | K69: 243.956044 | L69: 0.04426814786 | M69: 349.6062992 | N69: 65.03603256 | O69: 36.21103977 | P69: 12.07034659 | Q69: 331.1063792 | R69: 284.9956838 | S69: 0.8607375206 | U69: 0 | V69: 0
A70: 2427 | B70: Matzendorf | C70: Thal | D70: L | E70: 5 | F70: 32.15 | G70: 0.1555209953 | H70: 1010 | I70: 147.6002654 | J70: 1157.600265 | K70: 277.7297221 | L70: -0.08804495018 | M70: 318.3168317 | N70: 163.407117 | O70: 40.70776223 | P70: 13.56925408 | Q70: 1186.976371 | R70: 1144.861317 | S70: 0.9645190456 | U70: 0.57 | V70: 4.95 | W70: 0.1151515152 | X70: 550.3099544 | Y70: -0.2010111852
A71: 2620 | B71: Meltingen | C71: Thierstein | D71: L | E71: 3.14 | F71: 15.47 | G71: 0.2029734971 | H71: 569 | I71: 94.78527607 | J71: 663.7852761 | K71: 233.0572936 | L71: 0.08696552341 | M71: 271.8804921 | N71: 115.4919198 | O71: 0 | P71: 0 | Q71: 684.4919198 | R71: 612.1574851 | S71: 0.8943239027 | U71: 0.15 | V71: 0.52 | W71: 0.2884615385 | X71: 650 | Y71: -0.418577411
A72: 2457 | B72: Messen | C72: Bucheggberg | D72: L | E72: 4.67 | F72: 35.15 | G72: 0.132859175 | H72: 1145 | I72: 522.6507937 | J72: 1667.650794 | K72: 210.7755421 | L72: 0.1742573952 | M72: 306.9868996 | N72: 152.6222473 | O72: 3.752032419 | P72: 1.250677473 | Q72: 1298.872925 | R72: 1426.92049 | S72: 1.098583598 | U72: 0 | V72: 0.56 | W72: 0 | X72: 933.3333333 | Y72: -1.036931667
A73: 2477 | B73: Metzerlen-Mariastein | C73: Dorneck | D73: L | E73: 5.18 | F73: 31.1 | G73: 0.1665594855 | H73: 840 | I73: 178.652025 | J73: 1018.652025 | K73: 305.3054354 | L73: -0.1960766559 | M73: 370.2380952 | N73: 169.2897732 | O73: 176.3922677 | P73: 58.79742255 | Q73: 1068.087196 | R73: 1097.090806 | S73: 1.027154721 | U73: 0.05 | V73: 2.05 | W73: 0.0243902439 | X73: 1281.25 | Y73: -1.79623432
A74: 2428 | B74: Mümliswil-Ramiswil | C74: Thal | D74: L | E74: 8.7 | F74: 49.44 | G74: 0.1759708738 | H74: 2011 | I74: 517.6154606 | J74: 2528.615461 | K74: 195.5220189 | L74: 0.234015201 | M74: 245.8478369 | N74: 353.8774272 | O74: 0 | P74: 0 | Q74: 2364.877427 | R74: 2182.981424 | S74: 0.9230843845 | U74: 0.66 | V74: 2.85 | W74: 0.2315789474 | X74: 483.0508475 | Y74: -0.05422310858
A75: 2404 | B75: Neuendorf | C75: Gäu | D75: A | E75: 7.11 | F75: 48.47 | G75: 0.1466886734 | H75: 1911 | I75: 329.94899 | J75: 2240.94899 | K75: 216.292295 | L75: -0.01940633731 | M75: 253.6368394 | N75: 284.7231945 | O75: 30.00326812 | P75: 10.00108937 | Q75: 2205.724284 | R75: 2319.913104 | S75: 1.051769308 | U75: 2.68 | V75: 36.44 | W75: 0.07354555434 | X75: 206.750396 | Y75: 0.2717452318
A76: 2405 | B76: Niederbuchsiten | C76: Gäu | D76: L | E76: 5.49 | F76: 23.43 | G76: 0.2343149808 | H76: 860 | I76: 114.0391267 | J76: 974.0391267 | K76: 240.5447518 | L76: 0.05763236093 | M76: 272.4418605 | N76: 201.5108835 | O76: 0 | P76: 0 | Q76: 1061.510883 | R76: 905.6882916 | S76: 0.8532067883 | U76: 1.23 | V76: 4.26 | W76: 0.2887323944 | X76: 98.61111111 | Y76: 0.7847884697
A77: 2495 | B77: Niedergösgen | C77: Gösgen | D77: A | E77: 11.6 | F77: 70.19 | G77: 0.1652657074 | H77: 3598 | I77: 627.1927254 | J77: 4225.192725 | K77: 166.1225998 | L77: 0.2170482496 | M77: 195.0806003 | N77: 594.6260151 | O77: 0 | P77: 0 | Q77: 4192.626015 | R77: 3823.149879 | S77: 0.911874769 | U77: 7.78 | V77: 15.26 | W77: 0.5098296199 | X77: 303.2290114 | Y77: -0.06808972424
A78: 2478 | B78: Nuglar-St. Pantaleon | C78: Dorneck | D78: L | E78: 8.06 | F78: 34.84 | G78: 0.2313432836 | H78: 1357 | I78: 152.5653862 | J78: 1509.565386 | K78: 230.7949051 | L78: 0.0958287464 | M78: 256.742815 | N78: 313.9328358 | O78: 0 | P78: 0 | Q78: 1670.932836 | R78: 1487.579521 | S78: 0.8902688902 | U78: 0.35 | V78: 0.54 | W78: 0.6481481481 | X78: 284.2105263 | Y78: 0.3797313345
A79: 2621 | B79: Nunningen | C79: Thierstein | D79: L | E79: 14.26 | F79: 47.51 | G79: 0.3001473374 | H79: 1720 | I79: 382.5215081 | J79: 2102.521508 | K79: 225.9667728 | L79: 0.1147436283 | M79: 276.2209302 | N79: 516.2534203 | O79: 0 | P79: 0 | Q79: 2236.25342 | R79: 1955.855822 | S79: 0.8746127804 | U79: 1.58 | V79: 6.76 | W79: 0.2337278107 | X79: 213.3613887 | Y79: 0.5343543901
A80: 2406 | B80: Oberbuchsiten | C80: Gäu | D80: A | E80: 8.6 | F80: 44.25 | G80: 0.1943502825 | H80: 1853 | I80: 335.5217203 | J80: 2188.52172 | K80: 202.1912764 | L80: 0.04705311626 | M80: 238.8019428 | N80: 360.1310734 | O80: 0 | P80: 0 | Q80: 2213.131073 | R80: 1853 | S80: 0.8372753075 | U80: 13.27 | V80: 15.2 | W80: 0.8730263158 | X80: 549.2432072 | Y80: -0.9346467639
A81: 2553 | B81: Oberdorf | C81: Lebern | D81: A | E81: 4.81 | F81: 43.12 | G81: 0.1115491651 | H81: 1520 | I81: 299.0588571 | J81: 1819.058857 | K81: 237.0456559 | L81: -0.1172189186 | M81: 283.6842105 | N81: 192.6186449 | O81: 206.7600768 | P81: 68.92002559 | Q81: 1781.538671 | R81: 1689.565139 | S81: 0.9483741034 | U81: 0 | V81: 0.98 | W81: 0 | X81: 445.4545455 | Y81: -0.5690630009
A82: 2528 | B82: Obergerlafingen | C82: Wasseramt | D82: A | E82: 2.58 | F82: 31.32 | G82: 0.08237547893 | H82: 991 | I82: 123 | J82: 1114 | K82: 281.1490126 | L82: -0.3250822696 | M82: 316.0443996 | N82: 103.3172773 | O82: 263.2236921 | P82: 87.74123071 | Q82: 1182.058508 | R82: 1109.243879 | S82: 0.9384001484 | U82: 0.11 | V82: 5.66 | W82: 0.01943462898 | X82: 101.691745 | Y82: 0.6418023876
A83: 2497 | B83: Obergösgen | C83: Gösgen | D83: A | E83: 5.51 | F83: 40.67 | G83: 0.1354806983 | H83: 2100 | I83: 190.2583623 | J83: 2290.258362 | K83: 177.5782186 | L83: 0.1630568192 | M83: 193.6666667 | N83: 284.5094664 | O83: 0 | P83: 0 | Q83: 2384.509466 | R83: 2427.229002 | S83: 1.01791544 | U83: 0.94 | V83: 7.03 | W83: 0.13371266 | X83: 332.8709088 | Y83: -0.1724999383
A84: 2529 | B84: Oekingen | C84: Wasseramt | D84: A | E84: 3.44 | F84: 19.13 | G84: 0.1798222687 | H84: 664 | I84: 87 | J84: 751 | K84: 254.7270306 | L84: -0.2005529338 | M84: 288.1024096 | N84: 137.7563698 | O84: 102.0695795 | P84: 34.02319317 | Q84: 835.7795629 | R84: 664 | S84: 0.794467859 | U84: 0 | V84: 1.15 | W84: 0
A85: 2407 | B85: Oensingen | C85: Gäu | D85: U | E85: 10.74 | F85: 96.1 | G85: 0.1117585848 | H85: 5247 | I85: 2185.500881 | J85: 7432.500881 | K85: 129.2969911 | L85: 0.137073775 | M85: 183.1522775 | N85: 586.3972945 | O85: 0 | P85: 0 | Q85: 5833.397294 | R85: 5691.400655 | S85: 0.9756579858 | U85: 26.72 | V85: 61.85 | W85: 0.4320129345 | X85: 139.7528715 | Y85: 0.3947028619
A86: 2581 | B86: Olten | C86: Olten | D86: U | E86: 23.94 | F86: 186.92 | G86: 0.1280761823 | H86: 17149 | I86: 14242.44533 | J86: 31391.44533 | K86: 59.54488494 | L86: 0.6025983099 | M86: 108.9976092 | N86: 2196.378451 | O86: 0 | P86: 0 | Q86: 19345.37845 | R86: 19391.66605 | S86: 1.002392696 | U86: 1.71 | V86: 66.71 | W86: 0.02563333833 | X86: 155.8525064 | Y86: 0.3249721809
A87: 2530 | B87: Recherswil | C87: Wasseramt | D87: A | E87: 6.73 | F87: 44.52 | G87: 0.1511680144 | H87: 1638 | I87: 278.2016292 | J87: 1916.201629 | K87: 232.3346318 | L87: -0.09501540984 | M87: 271.7948718 | N87: 269.5059211 | O87: 144.8237156 | P87: 48.27457188 | Q87: 1955.780493 | R87: 1638 | S87: 0.8375173011 | U87: 3.2 | V87: 3.06 | W87: 1.045751634 | X87: 261.9779721 | Y87: 0.07721237283
A88: 2582 | B88: Rickenbach | C88: Olten | D88: U | E88: 5.73 | F88: 23.72 | G88: 0.2415682968 | H88: 613 | I88: 157.5590502 | J88: 770.5590502 | K88: 307.8284525 | L88: -1.054442585 | M88: 386.949429 | N88: 311.2668822 | O88: 675.5253831 | P88: 225.1751277 | Q88: 1149.44201 | R88: 677.763084 | S88: 0.5896453045 | U88: 9.04 | V88: 16.47 | W88: 0.5488767456 | X88: 251.2402801 | Y88: -0.08817100373
A89: 2554 | B89: Riedholz | C89: Lebern | D89: A | E89: 6 | F89: 59.94 | G89: 0.1001001001 | H89: 1882 | I89: 208.5686275 | J89: 2090.568627 | K89: 286.7162513 | L89: -0.3513212 | M89: 318.4909671 | N89: 240.272738 | O89: 518.3246522 | P89: 172.7748841 | Q89: 2295.047622 | R89: 2157.819654 | S89: 0.9402069191 | U89: 0.8 | V89: 17.96 | W89: 0.04454342984 | X89: 2641.176471 | Y89: -8.303243891
A90: 2479 | B90: Rodersdorf | C90: Dorneck | D90: A | E90: 6.82 | F90: 31.48 | G90: 0.2166454892 | H90: 1169 | I90: 135.1462806 | J90: 1304.146281 | K90: 241.3839649 | L90: -0.1376657848 | M90: 269.2899914 | N90: 273.1100121 | O90: 91.63096514 | P90: 30.54365505 | Q90: 1472.653667 | R90: 1169 | S90: 0.7938051057 | U90: 0 | V90: 0.6 | W90: 0
A91: 2555 | B91: Rüttenen | C91: Lebern | D91: A | E91: 4.45 | F91: 35.27 | G91: 0.1261695492 | H91: 1287 | I91: 215.3090521 | J91: 1502.309052 | K91: 234.7719329 | L91: -0.1065026438 | M91: 274.048174 | N91: 178.2022807 | O91: 125.4032446 | P91: 41.80108154 | Q91: 1507.003362 | R91: 1305.307174 | S91: 0.8661607573 | U91: 0.12 | V91: 3.55 | W91: 0.0338028169 | X91: 1145.16129 | Y91: -3.033700473
A92: 2461 | B92: Schnottwil | C92: Bucheggberg | D92: L | E92: 2.31 | F92: 25.6 | G92: 0.090234375 | H92: 811 | I92: 96 | J92: 907 | K92: 282.2491731 | L92: -0.1057505303 | M92: 315.6596794 | N92: 75.49408805 | O92: 25.64443897 | P92: 8.548146324 | Q92: 895.0422344 | R92: 974.7645369 | S92: 1.089070995 | U92: 0.9 | V92: 2.13 | W92: 0.4225352113 | X92: 173.1707317 | Y92: 0.6220675565
A93: 2583 | B93: Schönenwerd | C93: Olten | D93: U | E93: 7.34 | F93: 90.74 | G93: 0.08089045625 | H93: 4749 | I93: 1022.747678 | J93: 5771.747678 | K93: 157.2140798 | L93: -0.04924446646 | M93: 191.0718046 | N93: 398.7258142 | O93: 180.207136 | P93: 60.06904534 | Q93: 5207.79486 | R93: 5195.632017 | S93: 0.9976644929 | U93: 2.32 | V93: 17.26 | W93: 0.134414832 | X93: 153.2087816 | Y93: 0.3364226721
A94: 2480 | B94: Seewen | C94: Dorneck | D94: L | E94: 8.88 | F94: 26.34 | G94: 0.3371298405 | H94: 840 | I94: 133.9854967 | J94: 973.9854967 | K94: 270.4352384 | L94: -0.05946779219 | M94: 313.5714286 | N94: 290.2110398 | O94: 20.82869229 | P94: 6.942897429 | Q94: 1137.153937 | R94: 1032.183544 | S94: 0.907690252 | U94: 0.63 | V94: 1.25 | W94: 0.504 | X94: 1785.714286 | Y94: -2.89719069
A95: 2556 | B95: Selzach | C95: Lebern | D95: A | E95: 10.44 | F95: 67.83 | G95: 0.1539141973 | H95: 2834 | I95: 383.3171719 | J95: 3217.317172 | K95: 210.8278307 | L95: 0.006348207189 | M95: 239.3436838 | N95: 436.192835 | O95: 0 | P95: 0 | Q95: 3270.192835 | R95: 3235.360699 | S95: 0.9893485988 | U95: 3.81 | V95: 19.39 | W95: 0.1964930376 | X95: 180.100804 | Y95: 0.3656153902
A96: 2601 | B96: Solothurn | C96: Solothurn | D96: U | E96: 24.03 | F96: 262.72 | G96: 0.09146619976 | H96: 16159 | I96: 13212.60265 | J96: 29371.60265 | K96: 89.44694069 | L96: 0.4030324276 | M96: 162.5843183 | N96: 1478.002322 | O96: 1.818989404e-12 | P96: 6.063298012e-13 | Q96: 17637.00232 | R96: 17612.15723 | S96: 0.9985913087 | U96: 7.11 | V96: 20.75 | W96: 0.3426506024 | X96: 71.00270898 | Y96: 0.6924733205
A97: 2584 | B97: Starrkirch-Wil | C97: Olten | D97: U | E97: 4.09 | F97: 35.5 | G97: 0.1152112676 | H97: 1623 | I97: 379.5 | J97: 2002.5 | K97: 177.278402 | L97: -0.183153459 | M97: 218.7307455 | N97: 222.1782807 | O97: 305.4422893 | P97: 101.8140964 | Q97: 1946.992377 | R97: 1990.321546 | S97: 1.022254411 | U97: 0 | V97: 0
A98: 2499 | B98: Stüsslingen | C98: Gösgen | D98: L | E98: 6.54 | F98: 27.51 | G98: 0.2377317339 | H98: 903 | I98: 112 | J98: 1015 | K98: 271.0344828 | L98: -0.0618154156 | M98: 304.6511628 | N98: 214.6717557 | O98: -1.136868377e-13 | P98: -3.789561257e-14 | Q98: 1117.671756 | R98: 1259.945011 | S98: 1.127294311 | U98: 0 | V98: 0
A99: 2532 | B99: Subingen | C99: Wasseramt | D99: A | E99: 7.34 | F99: 64.68 | G99: 0.1134817563 | H99: 2658 | I99: 1202.070547 | J99: 3860.070547 | K99: 167.5617044 | L99: 0.2102656112 | M99: 243.3408578 | N99: 301.6345083 | O99: 0 | P99: 0 | Q99: 2959.634508 | R99: 3301.011642 | S99: 1.115344355 | U99: 2.58 | V99: 18.83 | W99: 0.137015401 | X99: 66.17156978 | Y99: 0.7669181673
A100: 2500 | B100: Trimbach | C100: Gösgen | D100: U | E100: 15.13 | F100: 88.82 | G100: 0.170344517 | H100: 5795 | I100: 2388.130509 | J100: 8183.130509 | K100: 108.5403684 | L100: 0.2756031708 | M100: 153.2700604 | N100: 987.146476 | O100: 0 | P100: 0 | Q100: 6782.146476 | R100: 5876.07036 | S100: 0.8664027504 | U100: 4.9 | V100: 20.55 | W100: 0.2384428224 | X100: 472.2249931 | Y100: -0.03059647404
A101: 2463 | B101: Unterramsern | C101: Bucheggberg | D101: L | E101: 0.46 | F101: 4.83 | G101: 0.09523809524 | H101: 163 | I101: 24 | J101: 187 | K101: 258.2887701 | L101: -0.0118823071 | M101: 296.3190184 | N101: 15.52380952 | O101: 0 | P101: 0 | Q101: 178.5238095 | R101: 215.5162641 | S101: 1.207213002 | U101: 0 | V101: 0.69 | X101: 627.2727273 | Y101: -0.3689768022
A102: 2585 | B102: Walterswil | C102: Olten | D102: L | E102: 2.61 | F102: 18.86 | G102: 0.138388123 | H102: 565 | I102: 45.10301737 | J102: 610.1030174 | K102: 309.128122 | L102: -0.2110525643 | M102: 333.8053097 | N102: 85.29851507 | O102: 51.37164527 | P102: 17.12388176 | Q102: 667.4223968 | R102: 583.374927 | S102: 0.8740715472 | U102: 1.18 | V102: 1.93 | W102: 0.6113989637 | X102: 622.5806452 | Y102: -0.3587366766
A103: 2586 | B103: Wangen bei Olten | C103: Olten | D103: U | E103: 15.31 | F103: 89.07 | G103: 0.1718872797 | H103: 4192 | I103: 718.2890061 | J103: 4910.289006 | K103: 181.3946183 | L103: -0.2106250263 | M103: 212.476145 | N103: 831.6746887 | O103: 646.4888649 | P103: 215.4962883 | Q103: 5239.170977 | R103: 4669.736319 | S103: 0.8913120682 | U103: 4.92 | V103: 15.61 | W103: 0.3151825753 | X103: 60.65741963 | Y103: 0.7372808007
A104: 2430 | B104: Welschenrohr-Gänsbrunnen | C104: Thal | D104: L | E104: 5.65 | F104: 26.54 | G104: 0.2128862095 | H104: 877 | I104: 155.9091302 | J104: 1032.90913 | K104: 256.9441902 | L104: -0.006614727785 | M104: 302.622577 | N104: 186.7012057 | O104: 0 | P104: 0 | Q104: 1063.701206 | R104: 877 | S104: 0.8244796521 | U104: 0.55 | V104: 5.19 | W104: 0.105973025 | X104: 713.4020619 | Y104: -0.5569477691
A105: 2501 | B105: Winznau | C105: Gösgen | D105: A | E105: 7.58 | F105: 38.03 | G105: 0.1993163292 | H105: 1718 | I105: 100.3043267 | J105: 1818.304327 | K105: 209.1509075 | L105: 0.0142517072 | M105: 221.3620489 | N105: 342.4254536 | O105: 0 | P105: 0 | Q105: 2060.425454 | R105: 1718 | S105: 0.8338083754 | U105: 0.05 | V105: 6.08 | W105: 0.008223684211 | X105: 780.1180381 | Y105: -2.37884446
A106: 2502 | B106: Wisen | C106: Gösgen | D106: L | E106: 3.34 | F106: 11.26 | G106: 0.296625222 | H106: 350 | I106: 28 | J106: 378 | K106: 297.8835979 | L106: -0.1670005715 | M106: 321.7142857 | N106: 109.1559541 | O106: 17.99282745 | P106: 5.997609152 | Q106: 465.1535633 | R106: 441.8189116 | S106: 0.9498345201 | U106: 0 | V106: 0.25 | W106: 0
A107: 2481 | B107: Witterswil | C107: Dorneck | D107: A | E107: 4.37 | F107: 29.09 | G107: 0.1502234445 | H107: 1293 | I107: 178.4024663 | J107: 1471.402466 | K107: 197.7025366 | L107: 0.0682089773 | M107: 224.9806651 | N107: 194.2389137 | O107: 0 | P107: 0 | Q107: 1487.238914 | R107: 1390.511939 | S107: 0.9349620468 | U107: 0.51 | V107: 6.58 | W107: 0.07750759878 | X107: 360.0547196 | Y107: -0.2682518217
A108: 2408 | B108: Wolfwil | C108: Gäu | D108: L | E108: 11.99 | F108: 56.47 | G108: 0.2123251284 | H108: 1890 | I108: 385.755229 | J108: 2275.755229 | K108: 248.1374063 | L108: 0.02788707711 | M108: 298.7830688 | N108: 401.2944927 | O108: 2.273736754e-13 | P108: 7.579122515e-14 | Q108: 2291.294493 | R108: 2033.247995 | S108: 0.8873796019 | U108: 5.27 | V108: 9.55 | W108: 0.5518324607 | X108: 444.1860465 | Y108: 0.03059647404
A109: 2534 | B109: Zuchwil | C109: Wasseramt | D109: U | E109: 12.7 | F109: 101.87 | G109: 0.1246686954 | H109: 8537 | I109: 806.5415076 | J109: 9343.541508 | K109: 109.0271819 | L109: 0.2723541842 | M109: 119.3276327 | N109: 1064.296653 | O109: 0 | P109: 0 | Q109: 9601.296653 | R109: 9265.055765 | S109: 0.9649796376 | U109: 1.63 | V109: 50.3 | W109: 0.0324055666 | X109: 121.5221725 | Y109: 0.4736636003
A110: 2622 | B110: Zullwil | C110: Thierstein | D110: L | E110: 8.87 | F110: 16.57 | G110: 0.5353047677 | H110: 549 | I110: 140 | J110: 689 | K110: 240.4934688 | L110: 0.05783326934 | M110: 301.8214936 | N110: 293.8823174 | O110: 0 | P110: 0 | Q110: 842.8823174 | R110: 549 | S110: 0.651336478 | U110: 0.47 | V110: 0.85 | W110: 0.5529411765 | X110: 146.5517241 | Y110: 0.6801615917
Z112: =SUM(Z4:Z110) -> 0

Sheet Grundlagedaten_2023 (hidden)
A1: BFS-Nummer | B1: Gemeinde | C1: Bezirk | D1: HR | E1: WMZ unbebaut | F1: WMZ bebaut | G1: unb/beb WMZ | H1: Einwohner in WMZ | I1: Beschäftige in WMZ | J1: Summe EW+BS | K1: Dichtewert WMZ (DWMZ) | L1: Abweichung Dichtewert WMZ (AWMZ) | M1: Dichtewert WMZ (EW) | N1: Punb | O1: Pb | P1: Pbeb | Q1: Ptheo | R1: Bev (2038) | S1: BzB (2038) | U1: unbebaute AZ | V1: bebaute AZ | W1: unb/beb AZ
A2: 1 | B2: 2 | C2: 3 | D2: 4 | E2: 5 | F2: 6 | G2: 7 | H2: 8 | I2: 9 | J2: 10 | K2: 11 | L2: 12 | M2: 13 | N2: 14 | O2: 15 | P2: 16 | Q2: 17 | R2: 18 | S2: 19 | T2: 20 | U2: 21 | V2: 22 | W2: 23
E3: [ha] | F3: [ha] | G3: [%] | H3: [EW] | I3: [BS] | J3: [EW+BS] | K3: [m2/(EW+BS)] | L3: [%] | M3: [m2/(EW)] | N3: [EW] | O3: [EW] | P3: [EW] | Q3: [EW] | R3: [EW] | S3: [%] | U3: [ha] | V3: [ha] | W3: [%]
A4: 2421 | B4: Aedermannsdorf | C4: Thal | D4: L | E4: 3.26 | F4: 17.01 | G4: 0.1916519694 | H4: 457 | I4: 57 | J4: 514 | K4: 255.3 | L4: -0.2962548067 | M4: 355.4603854 | N4: 106.1889251 | O4: 97.07166124 | P4: 73.71661238 | Q4: 595.5461455 | R4: 457 | S4: 0.767362871 | U4: 0 | V4: 3.59 | W4: 0
A5: 2511 | B5: Aeschi | C5: Wasseramt | D5: L | E5: 3.85 | F5: 33.28 | G5: 0.1156850962 | H5: 1204 | I5: 109 | J5: 1313 | K5: 253.4653465 | L5: 0.007186265042 | M5: 289.6729776 | N5: 139.2848558 | O5: 0 | P5: 0 | Q5: 1343.284856 | R5: 1452.579984 | S5: 1.081364074 | U5: 0 | V5: 0 | W5: 0
A6: 2541 | B6: Balm bei Günsberg | C6: Lebern | D6: L | E6: 0.86 | F6: 7.05 | G6: 0.1219858156 | H6: 163 | I6: 24 | J6: 187 | K6: 255.3 | L6: -0.4767150317 | M6: 383.3333333 | N6: 28.01302932 | O6: 66.64169381 | P6: 44.75570033 | Q6: 213.2269273 | R6: 163 | S6: 0.7644437881 | U6: 0 | V6: 1.01 | W6: 0
A7: 2422 | B7: Balsthal | C7: Thal | D7: U | E7: 9.09 | F7: 124.86 | G7: 0.07280153772 | H7: 6136 | I7: 703 | J7: 6839 | K7: 149.8 | L7: -0.2187620244 | M7: 204.3885602 | N7: 493.7533949 | O7: 646.1835959 | P7: 670.4812602 | Q7: 6845.147927 | R7: 6582.909553 | S7: 0.9616898894 | U7: 5.68 | V7: 40.07 | W7: 0.1417519341
A8: 2611 | B8: Bärschwil | C8: Thierstein | D8: L | E8: 4.91 | F8: 29.44 | G8: 0.1667798913 | H8: 698 | I8: 45 | J8: 743 | K8: 255.3 | L8: -0.5520230863 | M8: 375.6944444 | N8: 159.9348534 | O8: 260.9576547 | P8: 161.1074919 | Q8: 944.9207383 | R8: 698 | S8: 0.7386862958 | U8: 0 | V8: 2.35 | W8: 0
A9: 2471 | B9: Bättwil | C9: Dorneck | D9: A | E9: 0.83 | F9: 19.61 | G9: 0.04232534421 | H9: 1096 | I9: 112 | J9: 1208 | K9: 162.3344371 | L9: 0.2349932277 | M9: 168.6643836 | N9: 46.38857726 | O9: 0 | P9: 0 | Q9: 1142.388577 | R9: 1096 | S9: 0.9593933464 | U9: 1.05 | V9: 5.93 | W9: 0.1770657673
A10: 2612 | B10: Beinwil | C10: Thierstein | D10: L | E10: 0.83 | F10: 3.21 | G10: 0.2585669782 | H10: 85 | I10: 6 | J10: 91 | K10: 255.3 | L10: -0.3816970339 | M10: 365.9090909 | N10: 27.03583062 | O10: 19.56026059 | P10: 16.88599349 | Q10: 118.5559175 | R10: 85 | S10: 0.7169612602 | U10: 0 | V10: 0.56 | W10: 0
A11: 2542 | B11: Bellach | C11: Lebern | D11: U | E11: 1.46 | F11: 81.71 | G11: 0.01786807 | H11: 4271 | I11: 362 | J11: 4633 | K11: 149.8 | L11: -0.1773378246 | M11: 156.5159065 | N11: 79.30472569 | O11: 167.3487235 | P11: -9.094947018e-13 | Q11: 4406.087634 | R11: 4524.196246 | S11: 1.026805779 | U11: 0.43 | V11: 36.16 | W11: 0.01189159292
A12: 2543 | B12: Bettlach | C12: Lebern | D12: U | E12: 6.78 | F12: 87.95 | G12: 0.07708925526 | H12: 4647 | I12: 263 | J12: 4910 | K12: 149.8 | L12: -0.1957559162 | M12: 184.557596 | N12: 368.2781097 | O12: 130.2949484 | P12: 11.91091798 | Q12: 5058.709759 | R12: 4647 | S12: 0.9186136824 | U12: 2.82 | V12: 22.29 | W12: 0.1265141319
A13: 2513 | B13: Biberist | C13: Wasseramt | D13: U | E13: 3.16 | F13: 170.34 | G13: 0.01855113303 | H13: 8985 | I13: 1156 | J13: 10141 | K13: 149.8 | L13: -0.1213057439 | M13: 190.7531944 | N13: 171.6458446 | O13: 267.5801195 | P13: 322.4323737 | Q13: 9245.839218 | R13: 12540.43195 | S13: 1.35633247 | U13: 2.62 | V13: 52.65 | W13: 0.0497625831
A14: 2445 | B14: Biezwil | C14: Bucheggberg | D14: L | E14: 0.41 | F14: 9.48 | G14: 0.04324894515 | H14: 280 | I14: 46 | J14: 326 | K14: 255.3 | L14: -0.1390424834 | M14: 348.9051095 | N14: 13.35504886 | O14: 28.79478827 | P14: 37.40065147 | Q14: 302.9533116 | R14: 280 | S14: 0.9242348219 | U14: 0 | V14: 0 | W14: 0
A15: 2514 | B15: Bolken | C15: Wasseramt | D15: L | E15: 0.42 | F15: 14.36 | G15: 0.02924791086 | H15: 527 | I15: 19 | J15: 546 | K15: 255.3 | L15: -0.03017494322 | M15: 271.0227273 | N15: 15.41364903 | O15: 0 | P15: 0 | Q15: 542.413649 | R15: 527 | S15: 0.9715832206 | U15: 0 | V15: 0 | W15: 0
A16: 2571 | B16: Boningen | C16: Olten | D16: A | E16: 1.48 | F16: 19.6 | G16: 0.07551020408 | H16: 762 | I16: 45 | J16: 807 | K16: 212.2 | L16: -0.1445562917 | M16: 267.5786594 | N16: 59.27112535 | O16: 22.94193032 | P16: 52.34000801 | Q16: 828.9184355 | R16: 805.815 | S16: 0.9721282162 | U16: 0.24 | V16: 9.12 | W16: 0.02631578947
A17: 2613 | B17: Breitenbach | C17: Thierstein | D17: U | E17: 12.52 | F17: 78.48 | G17: 0.1595310907 | H17: 3884 | I17: 411 | J17: 4295 | K17: 149.8 | L17: -0.2197870346 | M17: 202.5766555 | N17: 680.065182 | O17: 378.9005975 | P17: 389.5051602 | Q17: 4690.365381 | R17: 5577.85292 | S17: 1.189215011 | U17: 3.35 | V17: 22.36 | W17: 0.1498211091
A18: 2465 | B18: Buchegg | C18: Bucheggberg | D18: L | E18: 5.44 | F18: 86.42 | G18: 0.06294839158 | H18: 2124 | I18: 305 | J18: 2429 | K18: 255.3 | L18: -0.3935929235 | M18: 405.1449953 | N18: 177.1986971 | O18: 690.9837134 | P18: 683.4983713 | Q18: 2531.526602 | R18: 2124 | S18: 0.8390194275 | U18: 0 | V18: 2.71 | W18: 0
A19: 2472 | B19: Büren | C19: Dorneck | D19: L | E19: 3.2 | F19: 25.41 | G19: 0.1259346714 | H19: 1002 | I19: 48 | J19: 1050 | K19: 242 | L19: 0.05209557383 | M19: 244.3668993 | N19: 126.1865407 | O19: 0 | P19: 0 | Q19: 1128.186541 | R19: 1002 | S19: 0.8881509962 | U19: 0 | V19: 0 | W19: 0
A20: 2614 | B20: Büsserach | C20: Thierstein | D20: U | E20: 13.12 | F20: 53.48 | G20: 0.2453253553 | H20: 2283 | I20: 237 | J20: 2520 | K20: 149.8 | L20: -0.4167037532 | M20: 234.9647266 | N20: 712.6561651 | O20: 621.9429658 | P20: 626.6224878 | Q20: 3202.970487 | R20: 2780.513267 | S20: 0.8681045542 | U20: 1.57 | V20: 16.9 | W20: 0.09289940828
A21: 2572 | B21: Däniken | C21: Olten | D21: U | E21: 4.44 | F21: 55.21 | G21: 0.08042021373 | H21: 2783 | I21: 202 | J21: 2985 | K21: 149.8 | L21: -0.2347004269 | M21: 198.4437206 | N21: 241.1732754 | O21: 215.9136339 | P21: 215.2726779 | Q21: 3096.144487 | R21: 2858.654369 | S21: 0.9232948854 | U21: 11.06 | V21: 58.08 | W21: 0.1904269972
A22: 2516 | B22: Deitingen | C22: Wasseramt | D22: A | E22: 6.82 | F22: 56.42 | G22: 0.1208791209 | H22: 2194 | I22: 232 | J22: 2426 | K22: 212.2 | L22: -0.09596555692 | M22: 261.1655012 | N22: 273.1277533 | O22: 65.5114137 | P22: 98.49219063 | Q22: 2488.964891 | R22: 2239.607253 | S22: 0.8998147227 | U22: 1.73 | V22: 6.65 | W22: 0.2601503759
A23: 2517 | B23: Derendingen | C23: Wasseramt | D23: U | E23: 3.71 | F23: 110.46 | G23: 0.03358681876 | H23: 6578 | I23: 644 | J23: 7222 | K23: 149.8 | L23: -0.02102350813 | M23: 168.0977846 | N23: 220.9340938 | O23: -9.094947018e-13 | P23: -9.094947018e-13 | Q23: 6798.934094 | R23: 7645.047605 | S23: 1.124447965 | U23: 0.29 | V23: 26.31 | W23: 0.01102242493
A24: 2473 | B24: Dornach | C24: Dorneck | D24: U | E24: 7.87 | F24: 118.37 | G24: 0.06648644082 | H24: 6663 | I24: 859 | J24: 7522 | K24: 149.8 | L24: -0.05050108467 | M24: 174.3408455 | N24: 442.9991552 | O24: 0 | P24: 0 | Q24: 7105.999155 | R24: 8542.84326 | S24: 1.202201559 | U24: 2.04 | V24: 20.22 | W24: 0.1008902077
A25: 2535 | B25: Drei Höfe | C25: Wasseramt | D25: L | E25: 1.23 | F25: 23.64 | G25: 0.05203045685 | H25: 692 | I25: 27 | J25: 719 | K25: 255.3 | L25: -0.2878573682 | M25: 340.4040404 | N25: 40.06514658 | O25: 78.03257329 | P25: 75.40390879 | Q25: 758.0760043 | R25: 799.0293333 | S25: 1.054022722 | U25: 0 | V25: 1.12 | W25: 0
A26: 2573 | B26: Dulliken | C26: Olten | D26: U | E26: 9.34 | F26: 79.25 | G26: 0.1178548896 | H26: 5019 | I26: 286 | J26: 5305 | K26: 149.3873704 | L26: 0.00275453668 | M26: 159.0552764 | N26: 591.5136909 | O26: 0 | P26: 0 | Q26: 5610.513691 | R26: 5826.476255 | S26: 1.038492476 | U26: 9.22 | V26: 33.17 | W26: 0.2779620139
A27: 2401 | B27: Egerkingen | C27: Gäu | D27: U | E27: 8.63 | F27: 73.07 | G27: 0.1181059258 | H27: 3989 | I27: 1521 | J27: 5510 | K27: 132.6134301 | L27: 0.114730106 | M27: 186.2992532 | N27: 471.1245381 | O27: -4.547473509e-13 | P27: 46.38620315 | Q27: 4460.124538 | R27: 5794.024886 | S27: 1.299072444 | U27: 4.46 | V27: 31.11 | W27: 0.1433622629
A28: 2574 | B28: Eppenberg-Wöschnau | C28: Olten | D28: A | E28: 1.29 | F28: 6.68 | G28: 0.1931137725 | H28: 266 | I28: 11 | J28: 277 | K28: 212.2 | L28: -0.1364525667 | M28: 233.5664336 | N28: 51.66199439 | O28: 1.52102523 | P28: 0 | Q28: 318.1690028 | R28: 280.3555556 | S28: 0.8811529504 | U28: 0 | V28: 9.67 | W28: 0
A29: 2503 | B29: Erlinsbach | C29: Gösgen | D29: A | E29: 7.68 | F29: 75.12 | G29: 0.1022364217 | H29: 3400 | I29: 247 | J29: 3647 | K29: 205.9775158 | L29: 0.02932367688 | M29: 228.6091549 | N29: 347.6038339 | O29: 0 | P29: 0 | Q29: 3747.603834 | R29: 3685.824176 | S29: 0.9835148909 | U29: 1.16 | V29: 6.12 | W29: 0.1895424837
A30: 2615 | B30: Erschwil | C30: Thierstein | D30: L | E30: 5.03 | F30: 27.64 | G30: 0.1819826339 | H30: 899 | I30: 73 | J30: 972 | K30: 255.3 | L30: -0.1138352523 | M30: 297.9120879 | N30: 163.8436482 | O30: 1.325732899 | P30: 1.136868377e-13 | Q30: 1063.285559 | R30: 899 | S30: 0.8454925323 | U30: 0.13 | V30: 1.28 | W30: 0.1015625
A31: 2518 | B31: Etziken | C31: Wasseramt | D31: L | E31: 1.77 | F31: 24.42 | G31: 0.07248157248 | H31: 911 | I31: 28 | J31: 939 | K31: 255.3 | L31: -0.01865999907 | M31: 276.0499432 | N31: 66.03071253 | O31: 0 | P31: 1.136868377e-13 | Q31: 977.0307125 | R31: 1213.425945 | S31: 1.241952714 | U31: 0 | V31: 4.63 | W31: 0
A32: 2616 | B32: Fehren | C32: Thierstein | D32: L | E32: 3.53 | F32: 16.73 | G32: 0.2109982068 | H32: 557 | I32: 26 | J32: 583 | K32: 255.3 | L32: -0.1240265547 | M32: 289.3992933 | N32: 117.5260012 | O32: 0 | P32: 0 | Q32: 674.5260012 | R32: 557 | S32: 0.8257650543 | U32: 0 | V32: 0 | W32: 0
A33: 2544 | B33: Feldbrunnen-St. Niklaus | C33: Lebern | D33: A | E33: 0.65 | F33: 22.2 | G33: 0.02927927928 | H33: 950 | I33: 135 | J33: 1085 | K33: 204.6082949 | L33: 0.03577617846 | M33: 238.6192017 | N33: 27.81531532 | O33: 0 | P33: 0 | Q33: 977.8153153 | R33: 975.2298264 | S33: 0.9973558514 | U33: 0 | V33: 0 | W33: 0
A34: 2545 | B34: Flumenthal | C34: Lebern | D34: L | E34: 2.21 | F34: 22.63 | G34: 0.09765797614 | H34: 985 | I34: 76 | J34: 1061 | K34: 213.2893497 | L34: 0.1645540553 | M34: 227.3180459 | N34: 96.1931065 | O34: 1.136868377e-13 | P34: 0 | Q34: 1081.193106 | R34: 985 | S34: 0.9110305958 | U34: 0.61 | V34: 2.72 | W34: 0.2242647059
A35: 2575 | B35: Fulenbach | C35: Olten | D35: L | E35: 5.94 | F35: 46.01 | G35: 0.1291023691 | H35: 1612 | I35: 167 | J35: 1779 | K35: 255.3 | L35: -0.01303737934 | M35: 281.6113161 | N35: 208.1130189 | O35: 2.273736754e-13 | P35: 0 | Q35: 1820.113019 | R35: 1612 | S35: 0.8856592878 | U35: 0.38 | V35: 8.53 | W35: 0.04454865182
A36: 2474 | B36: Gempen | C36: Dorneck | D36: L | E36: 2.61 | F36: 22.9 | G36: 0.1139737991 | H36: 847 | I36: 215 | J36: 1062 | K36: 215.6308851 | L36: 0.1553823536 | M36: 271.3270142 | N36: 96.53580786 | O36: -1.136868377e-13 | P36: 0 | Q36: 943.5358079 | R36: 847 | S36: 0.8976871815 | U36: 0.09 | V36: 0.3 | W36: 0
A37: 2519 | B37: Gerlafingen | C37: Wasseramt | D37: U | E37: 2.59 | F37: 85.23 | G37: 0.03038836091 | H37: 5522 | I37: 975 | J37: 6497 | K37: 131.1836232 | L37: 0.1242748784 | M37: 154.2738138 | N37: 167.8045289 | O37: 0 | P37: 0 | Q37: 5689.804529 | R37: 6399.649304 | S37: 1.124757322 | U37: 3.38 | V37: 35.49 | W37: 0.09523809524
A38: 2546 | B38: Grenchen | C38: Lebern | D38: U | E38: 17.24 | F38: 243.82 | G38: 0.07070789927 | H38: 16707 | I38: 1787 | J38: 18494 | K38: 131.8373527 | L38: 0.1199108635 | M38: 140.8789816 | N38: 1181.316873 | O38: 0 | P38: 0 | Q38: 17888.31687 | R38: 20067.59809 | S38: 1.121827069 | U38: 17.26 | V38: 85.54 | W38: 0.2017769465
A39: 2576 | B39: Gretzenbach | C39: Olten | D39: U | E39: 8.08 | F39: 56.67 | G39: 0.1425798482 | H39: 2576 | I39: 158 | J39: 2734 | K39: 149.8 | L39: -0.3837030208 | M39: 223.3057229 | N39: 438.8919066 | O39: 502.2183596 | P39: 565.6186855 | Q39: 3182.298026 | R39: 2840.487701 | S39: 0.8925900959 | U39: 10.94 | V39: 27.76 | W39: 0.394092219
A40: 2617 | B40: Grindel | C40: Thierstein | D40: L | E40: 1.88 | F40: 13.24 | G40: 0.1419939577 | H40: 458 | I40: 20 | J40: 478 | K40: 255.3 | L40: -0.08494887465 | M40: 281.7982456 | N40: 65.03323263 | O40: 0 | P40: 5.684341886e-14 | Q40: 523.0332326 | R40: 458 | S40: 0.8756613757 | U40: 0.23 | V40: 0.01 | W40: 0
A41: 2547 | B41: Günsberg | C41: Lebern | D41: L | E41: 1.96 | F41: 32.75 | G41: 0.05984732824 | H41: 1078 | I41: 84 | J41: 1162 | K41: 255.3 | L41: -0.1039626021 | M41: 296.122633 | N41: 64.51541985 | O41: 0 | P41: 0 | Q41: 1142.51542 | R41: 1078 | S41: 0.9435321233 | U41: 0.65 | V41: 1.2 | W41: 0.5416666667
A42: 2578 | B42: Gunzgen | C42: Olten | D42: A | E42: 2.88 | F42: 38.17 | G42: 0.0754519256 | H42: 1648 | I42: 154 | J42: 1802 | K42: 211.8201998 | L42: 0.00178982197 | M42: 222.1021021 | N42: 124.3447734 | O42: 0 | P42: 0 | Q42: 1772.344773 | R42: 1648 | S42: 0.9298416565 | U42: 2.74 | V42: 7.53 | W42: 0.363877822
A43: 2579 | B43: Hägendorf | C43: Olten | D43: U | E43: 7.94 | F43: 111.57 | G43: 0.07116608407 | H43: 5057 | I43: 458 | J43: 5515 | K43: 149.8 | L43: -0.3504860515 | M43: 219.520817 | N43: 431.2873438 | O43: 1003.293319 | P43: 979.700163 | Q43: 5822.71845 | R43: 5972.59939 | S43: 1.025740716 | U43: 6.19 | V43: 29.75 | W43: 0.2080672269
A44: 2520 | B44: Halten | C44: Wasseramt | D44: A | E44: 0.43 | F44: 22.2 | G44: 0.01936936937 | H44: 804 | I44: 75 | J44: 879 | K44: 212.2 | L44: -0.1901966398 | M44: 276.4632628 | N44: 17.2206648 | O44: 85.06688026 | P44: 86.06688026 | Q44: 849.5762915 | R44: 804 | S44: 0.946354092 | U44: 0 | V44: 0 | W44: 0
A45: 2402 | B45: Härkingen | C45: Gäu | D45: A | E45: 3.27 | F45: 36.62 | G45: 0.08929546696 | H45: 1665 | I45: 476 | J45: 2141 | K45: 171.0415694 | L45: 0.1939605591 | M45: 228.4283031 | N45: 148.6769525 | O45: 0 | P45: 0 | Q45: 1813.676952 | R45: 2058.655006 | S45: 1.135072596 | U45: 2.16 | V45: 50.59 | W45: 0.04269618502
A46: 2491 | B46: Hauenstein-Ifenthal | C46: Gösgen | D46: L | E46: 1.16 | F46: 7.97 | G46: 0.1455457967 | H46: 220 | I46: 24 | J46: 244 | K46: 255.3 | L46: -0.2794333892 | M46: 291.5708812 | N46: 37.78501629 | O46: 39.60912052 | P46: 0 | Q46: 270.9880565 | R46: 220 | S46: 0.8118438977 | U46: 0 | V46: 0 | W46: 0
A47: 2424 | B47: Herbetswil | C47: Thal | D47: L | E47: 1.72 | F47: 14.23 | G47: 0.1208713985 | H47: 471 | I47: 21 | J47: 492 | K47: 255.3 | L47: -0.1328932326 | M47: 286.7494824 | N47: 56.93042867 | O47: -5.684341886e-14 | P47: -5.684341886e-14 | Q47: 527.9304287 | R47: 471 | S47: 0.8921630094 | U47: 0.52 | V47: 1.86 | W47: 0.2795698925
A48: 2618 | B48: Himmelried | C48: Thierstein | D48: L | E48: 5.12 | F48: 33.07 | G48: 0.1548231025 | H48: 862 | I48: 51 | J48: 913 | K48: 255.3 | L48: -0.4187719793 | M48: 366.7418264 | N48: 166.7752443 | O48: 215.1986971 | P48: 172.6091205 | Q48: 1100.508143 | R48: 862 | S48: 0.7832745312 | U48: 0 | V48: 0.65 | W48: 0
A49: 2475 | B49: Hochwald | C49: Dorneck | D49: L | E49: 5.4 | F49: 43.6 | G49: 0.123853211 | H49: 1180 | I49: 106 | J49: 1286 | K49: 255.3 | L49: -0.3279896977 | M49: 367.3967987 | N49: 175.8957655 | O49: 240.1954397 | P49: 233.5211726 | Q49: 1435.960912 | R49: 1180 | S49: 0.8217493875 | U49: 0 | V49: 0.83 | W49: 0
A50: 2476 | B50: Hofstetten-Flüh | C50: Dorneck | D50: A | E50: 7.48 | F50: 81.73 | G50: 0.09152086137 | H50: 3201 | I50: 221 | J50: 3422 | K50: 212.2 | L50: -0.1255275093 | M50: 258.3413078 | N50: 299.5594714 | O50: 72.1277533 | P50: 108.4921906 | Q50: 3524.602056 | R50: 3305.705607 | S50: 0.9378947056 | U50: 0.97 | V50: 3.25 | W50: 0.2984615385
A51: 2425 | B51: Holderbank | C51: Thal | D51: L | E51: 1.74 | F51: 17.94 | G51: 0.09698996656 | H51: 617 | I51: 49 | J51: 666 | K51: 255.3 | L51: -0.05510916322 | M51: 303.6484245 | N51: 59.84280936 | O51: 0 | P51: 0 | Q51: 676.8428094 | R51: 617 | S51: 0.9115853659 | U51: 0.86 | V51: 1.33 | W51: 0.6466165414
A52: 2523 | B52: Horriwil | C52: Wasseramt | D52: A | E52: 1.38 | F52: 23.44 | G52: 0.05887372014 | H52: 809 | I52: 36 | J52: 845 | K52: 212.2 | L52: -0.3072405735 | M52: 285.5708908 | N52: 55.26631958 | O52: 129.7264718 | P52: 114.4937926 | Q52: 907.5084768 | R52: 809 | S52: 0.8914517282 | U52: 0 | V52: 2.06 | W52: 0
A53: 2548 | B53: Hubersdorf | C53: Lebern | D53: L | E53: 0.85 | F53: 19.99 | G53: 0.04252126063 | H53: 690 | I53: 27 | J53: 717 | K53: 255.3 | L53: -0.0920507555 | M53: 287.6258993 | N53: 29.33966983 | O53: 0 | P53: 0 | Q53: 719.3396698 | R53: 690 | S53: 0.9592130518 | U53: 0 | V53: 0 | W53: 0
A54: 2524 | B54: Hüniken | C54: Wasseramt | D54: L | E54: 0.15 | F54: 4.02 | G54: 0.03731343284 | H54: 144 | I54: 9 | J54: 153 | K54: 255.3 | L54: -0.02916215448 | M54: 278.7234043 | N54: 5.373134328 | O54: 0 | P54: 0 | Q54: 149.3731343 | R54: 144.9411765 | S54: 0.9703296187 | U54: 0 | V54: 0 | W54: 0
A55: 2549 | B55: Kammersrohr | C55: Lebern | D55: L | E55: 0 | F55: 0 | H55: 0 | I55: 0 | J55: 0 | R55: 0 | U55: 0 | V55: 0 | W55: 0
A56: 2580 | B56: Kappel | C56: Olten | D56: A | E56: 8.57 | F56: 66.19 | G56: 0.1294757516 | H56: 3377 | I56: 248 | J56: 3625 | K56: 182.5931034 | L56: 0.1395235464 | M56: 203.3098376 | N56: 437.2396132 | O56: 0 | P56: 0 | Q56: 3814.239613 | R56: 3887.025121 | S56: 1.019082574 | U56: 1.64 | V56: 5.13 | W56: 0.3196881092
A57: 2403 | B57: Kestenholz | C57: Gäu | D57: A | E57: 4.24 | F57: 48.01 | G57: 0.08831493439 | H57: 1804 | I57: 226 | J57: 2030 | K57: 212.2 | L57: -0.1145262161 | M57: 267.335563 | N57: 169.8037645 | O57: 118.7072487 | P57: 126.7048458 | Q57: 2013.372847 | R57: 2048.675996 | S57: 1.017534332 | U57: 1.55 | V57: 6.37 | W57: 0.2433281005
A58: 2492 | B58: Kienberg | C58: Gösgen | D58: L | E58: 1.67 | F58: 14.87 | G58: 0.1123066577 | H58: 362 | I58: 18 | J58: 380 | K58: 255.3 | L58: -0.5327684664 | M58: 393.8337802 | N58: 54.39739414 | O58: 122.3648208 | P58: 105.5016287 | Q58: 457.1856678 | R58: 362 | S58: 0.7918008493 | U58: 0 | V58: 2.09 | W58: 0
A59: 2619 | B59: Kleinlützel | C59: Thierstein | D59: L | E59: 7.33 | F59: 38.24 | G59: 0.1916841004 | H59: 1085 | I59: 119 | J59: 1204 | K59: 255.3 | L59: -0.2440578669 | M59: 353.0705775 | N59: 238.762215 | O59: 160.6026059 | P59: 163.723127 | Q59: 1377.296417 | R59: 1085 | S59: 0.7877752288 | U59: 0 | V59: 2.53 | W59: 0
A60: 2525 | B60: Kriegstetten | C60: Wasseramt | D60: A | E60: 1.26 | F60: 33.45 | G60: 0.03766816143 | H60: 1351 | I60: 179 | J60: 1530 | K60: 212.2 | L60: -0.03028958992 | M60: 262.529458 | N60: 50.8896861 | O60: 0 | P60: 65.4060873 | Q60: 1401.889686 | R60: 1436.414032 | S60: 1.024627006 | U60: 0 | V60: 0.37 | W60: 0
A61: 2550 | B61: Langendorf | C61: Lebern | D61: U | E61: 6.31 | F61: 65.69 | G61: 0.09605723854 | H61: 3802 | I61: 326 | J61: 4128 | K61: 149.8 | L61: -0.06230141481 | M61: 173.8845144 | N61: 365.2096209 | O61: 0 | P61: 0 | Q61: 4167.209621 | R61: 4043.145828 | S61: 0.9702285692 | U61: 0.32 | V61: 7.54 | W61: 0.0424403183
A62: 2426 | B62: Laupersdorf | C62: Thal | D62: L | E62: 3.46 | F62: 38.86 | G62: 0.08903757077 | H62: 1475 | I62: 101 | J62: 1576 | K62: 246.5736041 | L62: 0.03418094767 | M62: 258.286429 | N62: 131.3304169 | O62: 2.273736754e-13 | P62: 0 | Q62: 1606.330417 | R62: 1475 | S62: 0.918241966 | U62: 0.6 | V62: 6.53 | W62: 0.09188361409
A63: 2526 | B63: Lohn-Ammannsegg | C63: Wasseramt | D63: A | E63: 4.52 | F63: 72.21 | G63: 0.06259520842 | H63: 2840 | I63: 457 | J63: 3297 | K63: 212.2 | L63: -0.03212671274 | M63: 255.1467987 | N63: 181.0172207 | O63: 51.87024429 | P63: 61.66639968 | Q63: 3038.307302 | R63: 3120.804637 | S63: 1.0271524 | U63: 0 | V63: 6.85 | W63: 0
A64: 2551 | B64: Lommiswil | C64: Lebern | D64: A | E64: 3.09 | F64: 44.93 | G64: 0.0687736479 | H64: 1569 | I64: 65 | J64: 1634 | K64: 212.2 | L64: -0.2958030172 | M64: 292.690815 | N64: 123.7484982 | O64: 230.3592311 | P64: 266.1746095 | Q64: 1769.534909 | R64: 1581.788088 | S64: 0.8939004708 | U64: 0.16 | V64: 1.04 | W64: 0.1538461538
A65: 2493 | B65: Lostorf | C65: Gösgen | D65: L | E65: 9.21 | F65: 106.47 | G65: 0.08650324035 | H65: 3775 | I65: 281 | J65: 4056 | K65: 255.3 | L65: -0.02820211516 | M65: 283.2042724 | N65: 326.5497323 | O65: 0 | P65: -4.547473509e-13 | Q65: 4101.549732 | R65: 3775 | S65: 0.9203838174 | U65: 2.77 | V65: 8.19 | W65: 0.3382173382
A66: 2464 | B66: Lüsslingen-Nennigkofen | C66: Bucheggberg | D66: L | E66: 2.86 | F66: 34.47 | G66: 0.08297069916 | H66: 982 | I66: 71 | J66: 1053 | K66: 255.3 | L66: -0.2822186735 | M66: 336.119711 | N66: 93.15960912 | O66: 140.8013029 | P66: 91.91205212 | Q66: 1122.093377 | R66: 982 | S66: 0.8751499834 | U66: 1.03 | V66: 12.77 | W66: 0.0806577917
A67: 2527 | B67: Luterbach | C67: Wasseramt | D67: A | E67: 4.26 | F67: 68.98 | G67: 0.06175703102 | H67: 3658 | I67: 228 | J67: 3886 | K67: 177.5090067 | L67: 0.1634825321 | M67: 189.8092643 | N67: 225.9072195 | O67: 0 | P67: 0 | Q67: 3883.907219 | R67: 3964.475754 | S67: 1.020744197 | U67: 17.02 | V67: 55.88 | W67: 0.3045812455
A68: 2455 | B68: Lüterkofen-Ichertswil | C68: Bucheggberg | D68: L | E68: 0.73 | F68: 28.32 | G68: 0.02577683616 | H68: 826 | I68: 70 | J68: 896 | K68: 255.3 | L68: -0.2380392815 | M68: 359.1603053 | N68: 23.77850163 | O68: 96.47557003 | P68: 133.5439739 | Q68: 881.937025 | R68: 955.38479 | S68: 1.083280056 | U68: 0 | V68: 0.7 | W68: 0
A69: 2456 | B69: Lüterswil-Gächliwil | C69: Bucheggberg | D69: L | E69: 1.15 | F69: 10.02 | G69: 0.1147704591 | H69: 252 | I69: 39 | J69: 291 | K69: 255.3 | L69: -0.348726584 | M69: 344.5614035 | N69: 37.45928339 | O69: 74.38436482 | P69: 34.86970684 | Q69: 314.2540717 | R69: 252 | S69: 0.8018989179 | U69: 0 | V69: 0 | W69: 0
A70: 2427 | B70: Matzendorf | C70: Thal | D70: L | E70: 1.84 | F70: 35.31 | G70: 0.05210988389 | H70: 1155 | I70: 91 | J70: 1246 | K70: 255.3 | L70: -0.1100150328 | M70: 308.1151832 | N70: 60.18691589 | O70: 0 | P70: 4.16286645 | Q70: 1215.186916 | R70: 1155 | S70: 0.9504710633 | U70: 0 | V70: 5.51 | W70: 0
A71: 2620 | B71: Meltingen | C71: Thierstein | D71: L | E71: 1.66 | F71: 16.97 | G71: 0.09781968179 | H71: 623 | I71: 47 | J71: 670 | K71: 253.2835821 | L71: 0.007898229183 | M71: 276.3934426 | N71: 60.94166176 | O71: 0 | P71: 0 | Q71: 683.9416618 | R71: 623 | S71: 0.9108964037 | U71: 0 | V71: 0.68 | W71: 0
A72: 2457 | B72: Messen | C72: Bucheggberg | D72: L | E72: 2.39 | F72: 35.19 | G72: 0.06791702188 | H72: 1183 | I72: 139 | J72: 1322 | K72: 255.3 | L72: -0.04264627714 | M72: 260.0890208 | N72: 80.34583689 | O72: 0 | P72: 0 | Q72: 1263.345837 | R72: 1183 | S72: 0.9364023417 | U72: 0 | V72: 2.36 | W72: 0
A73: 2477 | B73: Metzerlen-Mariastein | C73: Dorneck | D73: L | E73: 3.1 | F73: 33.48 | G73: 0.09259259259 | H73: 924 | I73: 122 | J73: 1046 | K73: 255.3 | L73: -0.2537269167 | M73: 368.8668867 | N73: 100.9771987 | O73: 166.5537459 | P73: 183.1824104 | Q73: 1080.495114 | R73: 924 | S73: 0.8551635153 | U73: 0 | V73: 0.9 | W73: 0
A74: 2428 | B74: Mümliswil-Ramiswil | C74: Thal | D74: L | E74: 3.48 | F74: 55.07 | G74: 0.06319230071 | H74: 1939 | I74: 298 | J74: 2237 | K74: 246.1779169 | L74: 0.03573083881 | M74: 280.2679031 | N74: 122.5298711 | O74: 0 | P74: 0 | Q74: 2061.529871 | R74: 1939 | S74: 0.9405636208 | U74: 0.6 | V74: 2.94 | W74: 0.2040816327
A75: 2404 | B75: Neuendorf | C75: Gäu | D75: A | E75: 3.95 | F75: 51.56 | G75: 0.07660977502 | H75: 2415 | I75: 186 | J75: 2601 | K75: 198.2314494 | L75: 0.06582728821 | M75: 214.0956341 | N75: 185.0126067 | O75: 0 | P75: 0 | Q75: 2600.012607 | R75: 2784.190787 | S75: 1.070837418 | U75: 0.8 | V75: 38.69 | W75: 0.02067717757
A76: 2405 | B76: Niederbuchsiten | C76: Gäu | D76: L | E76: 1.55 | F76: 29.5 | G76: 0.05254237288 | H76: 1217 | I76: 137 | J76: 1354 | K76: 217.872969 | L76: 0.1466001998 | M76: 241.8367347 | N76: 63.9440678 | O76: 0 | P76: 0 | Q76: 1280.944068 | R76: 1580.690347 | S76: 1.234004191 | U76: 0 | V76: 6.68 | W76: 0
A77: 2495 | B77: Niedergösgen | C77: Gösgen | D77: U | E77: 5.79 | F77: 76.6 | G77: 0.07558746736 | H77: 3928 | I77: 340 | J77: 4268 | K77: 149.8 | L77: -0.1980985582 | M77: 204.4362292 | N77: 314.5029875 | O77: 232.7821836 | P77: 418.3231939 | Q77: 4320.097049 | R77: 4605.275775 | S77: 1.066012111 | U77: 8.23 | V77: 30.4 | W77: 0.2707236842
A78: 2478 | B78: Nuglar-St. Pantaleon | C78: Dorneck | D78: L | E78: 4.31 | F78: 38.88 | G78: 0.1108539095 | H78: 1505 | I78: 77 | J78: 1582 | K78: 245.7648546 | L78: 0.03734878725 | M78: 258.310992 | N78: 166.8351337 | O78: 2.273736754e-13 | P78: 2.273736754e-13 | Q78: 1671.835134 | R78: 1505 | S78: 0.9002083816 | U78: 0.08 | V78: 0.8 | W78: 0.1
A79: 2621 | B79: Nunningen | C79: Thierstein | D79: L | E79: 7.9 | F79: 54.66 | G79: 0.1445298207 | H79: 1842 | I79: 194 | J79: 2036 | K79: 255.3 | L79: -0.05157690363 | M79: 296.7849224 | N79: 266.2239297 | O79: 0 | P79: -2.273736754e-13 | Q79: 2108.22393 | R79: 1842 | S79: 0.8737212276 | U79: 1.18 | V79: 7.23 | W79: 0.163208852
A80: 2406 | B80: Oberbuchsiten | C80: Gäu | D80: A | E80: 3.59 | F80: 49.37 | G80: 0.07271622443 | H80: 2170 | I80: 166 | J80: 2336 | K80: 211.3441781 | L80: 0.004033091036 | M80: 215.2468327 | N80: 157.794207 | O80: 0 | P80: 0 | Q80: 2327.794207 | R80: 2292.724936 | S80: 0.9849345483 | U80: 7.94 | V80: 21.51 | W80: 0.3691306369
A81: 2553 | B81: Oberdorf | C81: Lebern | D81: A | E81: 2.17 | F81: 46.09 | G81: 0.04708179649 | H81: 1711 | I81: 144 | J81: 1855 | K81: 212.2 | L81: -0.1708935526 | M81: 274.6571258 | N81: 86.90428514 | O81: 134.814978 | P81: 167.6135362 | Q81: 1842.842611 | R81: 1875.869468 | S81: 1.017921691 | U81: 0 | V81: 0.98 | W81: 0
A82: 2528 | B82: Obergerlafingen | C82: Wasseramt | D82: A | E82: 1.81 | F82: 32.09 | G82: 0.05640386413 | H82: 1206 | I82: 75 | J82: 1281 | K82: 212.2 | L82: -0.1805250522 | M82: 255.5913113 | N82: 72.48698438 | O82: 79.1421706 | P82: 29.32679215 | Q82: 1304.867708 | R82: 1206 | S82: 0.9242316234 | U82: 0.11 | V82: 5.66 | W82: 0.01943462898
A83: 2497 | B83: Obergösgen | C83: Gösgen | D83: A | E83: 1.31 | F83: 44.95 | G83: 0.02914349277 | H83: 2368 | I83: 159 | J83: 2527 | K83: 177.8789078 | L83: 0.1617393601 | M83: 193.9354839 | N83: 69.01179088 | O83: 0 | P83: 0 | Q83: 2437.011791 | R83: 2746.125733 | S83: 1.126841382 | U83: 0 | V83: 7.97 | W83: 0
A84: 2529 | B84: Oekingen | C84: Wasseramt | D84: A | E84: 1.44 | F84: 22.26 | G84: 0.06469002695 | H84: 849 | I84: 48 | J84: 897 | K84: 212.2 | L84: -0.1694652927 | M84: 285.5421687 | N84: 57.66920304 | O84: 42.46976372 | P84: 119.1389668 | Q84: 920.8257909 | R84: 912.675 | S84: 0.9911483898 | U84: 0 | V84: 0 | W84: 0
A85: 2407 | B85: Oensingen | C85: Gäu | D85: U | E85: 25.42 | F85: 84.64 | G85: 0.3003308129 | H85: 6431 | I85: 1267 | J85: 7698 | K85: 109.9506365 | L85: 0.2660171126 | M85: 133.8439894 | N85: 1931.427457 | O85: 0 | P85: 0 | Q85: 8362.427457 | R85: 7781.034217 | S85: 0.9304755415 | U85: 13.04 | V85: 80.55 | W85: 0.1618870267
A86: 2581 | B86: Olten | C86: Olten | D86: U | E86: 32.27 | F86: 176.72 | G86: 0.1826052512 | H86: 18350 | I86: 11524 | J86: 29874 | K86: 59.15511816 | L86: 0.6051060203 | M86: 92.92166288 | N86: 3350.80636 | O86: 0 | P86: 0 | Q86: 21700.80636 | R86: 26111.63122 | S86: 1.203256266 | U86: 16.7 | V86: 68.66 | W86: 0.2432274978
A87: 2530 | B87: Recherswil | C87: Wasseramt | D87: A | E87: 2.05 | F87: 49.92 | G87: 0.04106570513 | H87: 2018 | I87: 189 | J87: 2207 | K87: 212.2 | L87: -0.06592552956 | M87: 249.0918264 | N87: 82.87059295 | O87: 0 | P87: 0 | Q87: 2100.870593 | R87: 2553.549975 | S87: 1.215472283 | U87: 1.43 | V87: 4.83 | W87: 0.2960662526
A88: 2582 | B88: Rickenbach | C88: Olten | D88: U | E88: 3.67 | F88: 26.49 | G88: 0.1385428464 | H88: 1044 | I88: 98 | J88: 1142 | K88: 149.8 | L88: -0.5484744399 | M88: 251.7909003 | N88: 199.3481803 | O88: 394.8919066 | P88: 379.81912 | Q88: 1374.978816 | R88: 1214.388679 | S88: 0.883205374 | U88: 8.01 | V88: 17.45 | W88: 0.459025788
A89: 2554 | B89: Riedholz | C89: Lebern | D89: A | E89: 3.78 | F89: 77.59 | G89: 0.04871761825 | H89: 2093 | I89: 198 | J89: 2291 | K89: 212.2 | L89: -0.5960088055 | M89: 292.2437673 | N89: 151.381658 | O89: 1014.328795 | P89: 369.0420505 | Q89: 2582.491256 | R89: 3095.370482 | S89: 1.19859863 | U89: 0 | V89: 0.71 | W89: 0
A90: 2479 | B90: Rodersdorf | C90: Dorneck | D90: A | E90: 4.78 | F90: 37.09 | G90: 0.1288757077 | H90: 1353 | I90: 82 | J90: 1435 | K90: 212.2 | L90: -0.2180343966 | M90: 298.875502 | N90: 191.4297157 | O90: 132.382459 | P90: 245.1882259 | Q90: 1588.557202 | R90: 1353 | S90: 0.8517162607 | U90: 0 | V90: 0 | W90: 0
A91: 2555 | B91: Rüttenen | C91: Lebern | D91: A | E91: 2.68 | F91: 36.77 | G91: 0.07288550449 | H91: 1361 | I91: 107 | J91: 1468 | K91: 212.2 | L91: -0.1803809578 | M91: 274.2031134 | N91: 107.3287946 | O91: 111.5670805 | P91: 132.3776532 | Q91: 1505.517821 | R91: 1361 | S91: 0.9040078973 | U91: 0 | V91: 3.33 | W91: 0
A92: 2461 | B92: Schnottwil | C92: Bucheggberg | D92: L | E92: 2.48 | F92: 31.78 | G92: 0.07803650094 | H92: 1016 | I92: 196 | J92: 1212 | K92: 255.3 | L92: -0.02707097972 | M92: 286.1746362 | N92: 80.78175896 | O92: 19.17915309 | P92: 0 | Q92: 1103.17481 | R92: 1065.560976 | S92: 0.9659040126 | U92: 0 | V92: 0 | W92: 0
A93: 2583 | B93: Schönenwerd | C93: Olten | D93: U | E93: 6.02 | F93: 92.06 | G93: 0.06539213556 | H93: 4983 | I93: 553 | J93: 5536 | K93: 149.8 | L93: -0.1101024873 | M93: 185.7717851 | N93: 326.9961977 | O93: 17.54318305 | P93: 45.12275937 | Q93: 5315.843925 | R93: 5664.26196 | S93: 1.065543315 | U93: 2.29 | V93: 17.29 | W93: 0.1324465009
A94: 2480 | B94: Seewen | C94: Dorneck | D94: L | E94: 6.02 | F94: 29.48 | G94: 0.2042062415 | H94: 897 | I94: 89 | J94: 986 | K94: 255.3 | L94: -0.1711155551 | M94: 336.4367816 | N94: 196.0912052 | O94: 63.26058632 | P94: 83.42019544 | Q94: 1114.178067 | R94: 897 | S94: 0.8050777755 | U94: 0.19 | V94: 1.94 | W94: 0.09793814433
A95: 2556 | B95: Selzach | C95: Lebern | D95: A | E95: 2.87 | F95: 75.51 | G95: 0.03800821083 | H95: 3258 | I95: 226 | J95: 3484 | K95: 212.2 | L95: -0.02136493636 | M95: 225.8241758 | N95: 123.8307509 | O95: 0 | P95: 0 | Q95: 3381.830751 | R95: 3488.867347 | S95: 1.031650489 | U95: 3.33 | V95: 20.84 | W95: 0.1597888676
A96: 2601 | B96: Solothurn | C96: Solothurn | D96: U | E96: 15.41 | F96: 268.88 | G96: 0.05731181196 | H96: 16711 | I96: 10215 | J96: 26926 | K96: 99.85887247 | L96: 0.3333853641 | M96: 159.9632745 | N96: 957.7376897 | O96: 0 | P96: 0 | Q96: 17668.73769 | R96: 20913.27126 | S96: 1.183631317 | U96: 9.11 | V96: 21.38 | W96: 0.4260991581
A97: 2584 | B97: Starrkirch-Wil | C97: Olten | D97: U | E97: 1.9 | F97: 38.75 | G97: 0.04903225806 | H97: 1795 | I97: 114 | J97: 1909 | K97: 149.8 | L97: -0.3550457708 | M97: 216.7148641 | N97: 103.20478 | O97: 309.8343292 | P97: 306.3068984 | Q97: 2001.48289 | R97: 1945.77185 | S97: 0.9721651182 | U97: 0 | V97: 0 | W97: 0
A98: 2499 | B98: Stüsslingen | C98: Gösgen | D98: L | E98: 3.85 | F98: 33.3 | G98: 0.1156156156 | H98: 1091 | I98: 71 | J98: 1162 | K98: 255.3 | L98: -0.1225024321 | M98: 303.2287823 | N98: 126.1366366 | O98: 0 | P98: 0 | Q98: 1217.136637 | R98: 1118.45211 | S98: 0.9189207495 | U98: 0 | V98: 0 | W98: 0
A99: 2532 | B99: Subingen | C99: Wasseramt | D99: A | E99: 2.72 | F99: 77.21 | G99: 0.03522859733 | H99: 3187 | I99: 391 | J99: 3578 | K99: 212.2 | L99: -0.01692245364 | M99: 241.928392 | N99: 112.2735397 | O99: 0 | P99: 0 | Q99: 3299.27354 | R99: 3797.506314 | S99: 1.151012872 | U99: 1.81 | V99: 11.18 | W99: 0.1618962433
A100: 2500 | B100: Trimbach | C100: Gösgen | D100: U | E100: 8.35 | F100: 94.69 | G100: 0.08818249023 | H100: 5977 | I100: 637 | J100: 6614 | K100: 143.1660115 | L100: 0.04428563758 | M100: 156.1368543 | N100: 527.0667441 | O100: 0 | P100: 0 | Q100: 6504.066744 | R100: 5977 | S100: 0.9189635093 | U100: 3.1 | V100: 23.13 | W100: 0.1340250757
A101: 2463 | B101: Unterramsern | C101: Bucheggberg | D101: L | E101: 0 | F101: 5.97 | G101: 0 | H101: 175 | I101: 10 | J101: 185 | K101: 255.3 | L101: -0.2640137199 | M101: 345.9770115 | N101: 0 | O101: 19.46254072 | P101: 22.09120521 | Q101: 181.4875136 | R101: 175 | S101: 0.9642536644 | U101: 0 | V101: 0.72 | W101: 0
A102: 2585 | B102: Walterswil | C102: Olten | D102: L | E102: 1.28 | F102: 20.31 | G102: 0.06302314131 | H102: 594 | I102: 26 | J102: 620 | K102: 255.3 | L102: -0.2831204276 | M102: 338.5761589 | N102: 41.69381107 | O102: 67.56351792 | P102: 62.1237785 | Q102: 658.2149837 | R102: 594 | S102: 0.9024407142 | U102: 0.55 | V102: 2.57 | W102: 0.2140077821
A103: 2586 | B103: Wangen bei Olten | C103: Olten | D103: U | E103: 9.65 | F103: 98.49 | G103: 0.0979794903 | H103: 5300 | I103: 354 | J103: 5654 | K103: 149.8 | L103: -0.1628522029 | M103: 187.3943121 | N103: 524.1716458 | O103: 49.80988593 | P103: 93.12112982 | Q103: 5840.774941 | R103: 6416.682357 | S103: 1.0986012 | U103: 0.18 | V103: 14.94 | W103: 0.01204819277
A104: 2430 | B104: Welschenrohr-Gänsbrunnen | C104: Thal | D104: L | E104: 2.95 | F104: 32.53 | G104: 0.09068552106 | H104: 985 | I104: 56 | J104: 1041 | K104: 255.3 | L104: -0.2240031035 | M104: 318.8118812 | N104: 96.09120521 | O104: 74.60912052 | P104: 38.85993485 | Q104: 1105.960912 | R104: 985 | S104: 0.8906282214 | U104: 1.44 | V104: 4.3 | W104: 0.3348837209
A105: 2501 | B105: Winznau | C105: Gösgen | D105: A | E105: 7.26 | F105: 38.53 | G105: 0.1884246042 | H105: 1888 | I105: 90 | J105: 1978 | K105: 194.7927199 | L105: 0.08203242262 | M105: 202.7339642 | N105: 355.7456527 | O105: 0 | P105: 0 | Q105: 2243.745653 | R105: 2031.983838 | S105: 0.9056212926 | U105: 0 | V105: 6.05 | W105: 0
A106: 2502 | B106: Wisen | C106: Gösgen | D106: L | E106: 1.51 | F106: 13.15 | G106: 0.1148288973 | H106: 375 | I106: 19 | J106: 394 | K106: 255.3 | L106: -0.3073104002 | M106: 332.2077922 | N106: 49.18566775 | O106: 53.33876221 | P106: 31.61237785 | Q106: 441.9652552 | R106: 375 | S106: 0.8484829873 | U106: 0 | V106: 0.25 | W106: 0
A107: 2481 | B107: Witterswil | C107: Dorneck | D107: A | E107: 2.77 | F107: 30.74 | G107: 0.09011060507 | H107: 1435 | I107: 88 | J107: 1523 | K107: 201.8384767 | L107: 0.04882904481 | M107: 212.6662001 | N107: 129.3087183 | O107: 0 | P107: 0 | Q107: 1564.308718 | R107: 1435 | S107: 0.917338108 | U107: 0 | V107: 0 | W107: 0
A108: 2408 | B108: Wolfwil | C108: Gäu | D108: L | E108: 5.91 | F108: 62.27 | G108: 0.0949092661 | H108: 2259 | I108: 202 | J108: 2461 | K108: 253.0272247 | L108: 0.008902370915 | M108: 271.9175077 | N108: 214.4000321 | O108: 0 | P108: 0 | Q108: 2473.400032 | R108: 2589.40117 | S108: 1.046899465 | U108: 4.34 | V108: 11.26 | W108: 0.3854351687
A109: 2534 | B109: Zuchwil | C109: Wasseramt | D109: U | E109: 5.22 | F109: 117.44 | G109: 0.04444822888 | H109: 9114 | I109: 734 | J109: 9848 | K109: 119.2526401 | L109: 0.2039209604 | M109: 129.2124945 | N109: 405.101158 | O109: 0 | P109: 0 | Q109: 9519.101158 | R109: 10485.64909 | S109: 1.101537731 | U109: 1 | V109: 45.01 | W109: 0.02221728505
A110: 2622 | B110: Zullwil | C110: Thierstein | D110: L | E110: 7.64 | F110: 18.11 | G110: 0.4218663722 | H110: 611 | I110: 53 | J110: 664 | K110: 255.3 | L110: -0.06831556543 | M110: 290.4991948 | N110: 257.7603534 | O110: 0 | P110: 0 | Q110: 868.7603534 | R110: 611 | S110: 0.7033009709 | U110: 0 | V110: 1.1 | W110: 0

Sheet Medianwerte (hidden)
A1: Flächenbeanspruchung WMZ pro Handlungsraum (ohne BS)
B2: WMZ
B3: 2
A4: urban | B4: 184.0864007
A5: agglogeprägt | B5: 249.7162205
A6: ländlich | B6: 305.9842247
A9: Flächenbeanspruchung WMZ pro Handlungsraum (mit BS)
B10: WMZ
B11: 2
A12: urban | B12: 149.8355101
A13: agglogeprägt | B13: 212.17476
A14: ländlich | B14: 255.2557429
A17: Flächenbeanspruchung AZ pro Handlungsraum (BS)
B18: WMZ
B19: 2
A20: urban | B20: 230.9
A21: agglogeprägt | B21: 283.9
A22: ländlich | B22: 458.2

Sheet BS_HR (hidden)
A1: Handlungsraum
A2: 1 | B2: 2
A3: urban | B3: Im urbanen Raum erfolgt die Hauptentwicklung des Kantons. Er ist geprägt von attraktiven Zentrumsfunktionen, gut erschlossenen Arbeitsplatzgebieten und Wohnstandorten von hoher Qualität. Die Nutzungen sind stark durchmischt und die Erschliessung ist sehr gut. Die Siedlungen sind urban und dicht zu gestalten. Um eine hohe Siedlungsqualität zu erreichen, sind die Potenziale der Frei- und Grünräume innerhalb und ausserhalb der Siedlungen auszuschöpfen bzw. zu fördern.
A4: agglogeprägt | B4: Der agglomerationsgeprägte Raum grenzt an den urbanen Raum an. Er hat im Kanton Solothurn teilweise bereits ländlichen Charakter. Die Nutzungen sind grundsätzlich durchmischt, der Fokus liegt aber stärker beim Wohnen als beim Arbeiten. Die Verkehrserschliessung ist gut. Angesichts der guten Erreichbarkeit und der Zentrumsnähe sind Siedlungsverdichtungen oder -erweiterungen nach innen anzustreben und auf Standorte mit guter Anbindung an den öffentlichen Verkehr zu lenken. Der Erhöhung und Förderung der Siedlungsqualität kommt im agglomerationsgeprägten Raum besondere Bedeutung zu. Klare Siedlungsgrenzen sollen die Identität und räumliche Qualität erhöhen. Bestehende Freiräume sind vor Überbauung zu schützen und aufzuwerten.
A5: ländlich | B5: Der ländliche Raum zeichnet sich vor allem durch seine naturräumliche Vielfalt, Eigenart und Schönheit seiner Landschaften aus. Diese sind möglichst zu erhalten. Sie Siedlungsentwicklung als Wohn- und Arbeitsraum erfolgt gemässigt und ordnet sich in die Landschaft ein. Die Verkehrserschliessung ist auf tieferem Niveau als in den übrigen Räumen.
A6: Stützpunktgemeinde | B6: Den Stützpunktgemeinden im ländlichen Raum kommt mit dem Wohnungs- und Arbeitsplatzangebot sowie der Ausstattung für ihr Umland eine bedeutende Rolle zu. Sie sichern die Funktionsfähigkeit des ländlichen Raums und sollen sich angemessen weiterentwickeln, insbesondere in Bezug auf Versorgungseinrichtungen zur Deckung des täglichen Bedarfs, der lokalen Freizeiteinrichtungen sowie der Infrastrukturen für ältere Menschen und Familien.
A8: Siedlungsstrategie unbebaut/bebaut
A9: 1 | B9: 2
A10: < 10% | B10: Der Anteil an unbebauter WMZ ist gering.
A11: 10% - 20% | B11: Der Anteil an unbebauter WMZ ist durchschnittlich.
A12: > 20% | B12: Der Anteil an unbebauter WMZ ist hoch.
A14: Siedlungsstrategie Dichte
A15: 1 | B15: 2
A16: > 5% | B16: Dichte ist überdurchschnittlich
A17: -5% - 5% | B17: Dichte ist durchschnittlich
A18: < -5% | B18: Dichte ist unterdurchschnittlich
A20: Siedlungsstrategie Bauzonenbedarf
A21: 1 | B21: 2
A22: > 105% | B22: Bauzone ist eher zu knapp.
A23: 95% - 105% | B23: Bauzone ist ausreichend.
A24: < 95% | B24: Bauzone ist eher zu gross.
